Workbook

Sheet Clavet
A1: =Kerrobert!A1 -> Group: Global WYAMZ - Monthly Monthly: 02/2019 Type: AVG 1 Hr.
A3: Date & Time | B3: Unity | C3: Unity | D3: Unity | E3: Unity | F3: Unity | G3: Unity | H3: Unity | I3: Unity | J3: Unity | K3: Unity
B4: NO | C4: NO2 | D4: NOX | E4: O3 | F4: PM25 | G4: PRECIP | H4: TEMPERAT | I4: WS | J4: WD | K4: RH
B5: ppb | C5: ppb | D5: ppb | E5: ppb | F5: ug/m3(L) | G5: mm | H5: C° | I5: m/s | J5: Deg | K5: %RH
A6: 2019/02/01 01:00:00 | B6: 0.771 | C6: 4.804 | D6: 5.577 | E6: 25.827 | F6: 10.922 | G6: 0 | H6: -9.121 | I6: 2.488 | J6: 24.53 | K6: 77.244
A7: 2019/02/01 02:00:00 | B7: 0.679 | C7: 4.575 | D7: 5.258 | E7: 26.341 | F7: 15.343 | G7: 0 | H7: -10.96 | I7: 2.753 | J7: 25.114 | K7: 77.018
A8: 2019/02/01 03:00:00 | B8: 0.758 | C8: 4.142 | D8: 4.902 | E8: 27.366 | F8: 11.923 | G8: 0 | H8: -12.364 | I8: 3.527 | J8: 26.286 | K8: 74.495
A9: 2019/02/01 04:00:00 | B9: 0.506 | C9: 2.943 | D9: 3.452 | E9: 28.984 | F9: 6.97 | G9: 0.03 | H9: -13.391 | I9: 3.905 | J9: 28.312 | K9: 73.708
A10: 2019/02/01 05:00:00 | B10: Z | C10: Z | D10: Z | E10: Z | F10: 5.035 | G10: 0 | H10: -13.898 | I10: 4.039 | J10: 33.069 | K10: 73.782
A11: 2019/02/01 06:00:00 | B11: 0.365 | C11: 1.719 | D11: 2.086 | E11: 29.457 | F11: 3.726 | G11: 0 | H11: -14.14 | I11: 3.544 | J11: 34.042 | K11: 73.785
A12: 2019/02/01 07:00:00 | B12: 0.488 | C12: 1.312 | D12: 1.802 | E12: 29.319 | F12: 3.588 | G12: 0 | H12: -14.929 | I12: 3.615 | J12: 30.714 | K12: 72.975
A13: 2019/02/01 08:00:00 | B13: 0.594 | C13: 0.954 | D13: 1.55 | E13: 30.397 | F13: 2.825 | G13: 0 | H13: -16.033 | I13: 3.83 | J13: 31.898 | K13: 71.712
A14: 2019/02/01 09:00:00 | B14: 0.62 | C14: 0.932 | D14: 1.555 | E14: 30.536 | F14: 2.787 | G14: 0 | H14: -16.216 | I14: 4.217 | J14: 36.948 | K14: 70.614
A15: 2019/02/01 10:00:00 | B15: 0.83 | C15: 1.059 | D15: 1.89 | E15: 30.88 | F15: 2.421 | G15: 0 | H15: -16.809 | I15: 3.439 | J15: 34.342 | K15: 68.844
A16: 2019/02/01 11:00:00 | B16: 1.208 | C16: 1.391 | D16: 2.601 | E16: 32.239 | F16: 2.587 | G16: 0 | H16: -17.937 | I16: 3.651 | J16: 29.192 | K16: 67.424
A17: 2019/02/01 12:00:00 | B17: 1.098 | C17: 1.358 | D17: 2.458 | E17: 32.724 | F17: 2.856 | G17: 0 | H17: -18.09 | I17: 3.503 | J17: 27.177 | K17: 68.679
A18: 2019/02/01 13:00:00 | B18: 0.954 | C18: 0.976 | D18: 1.932 | E18: 34.098 | F18: 2.339 | G18: 0 | H18: -18.368 | I18: 4.041 | J18: 27.074 | K18: 68.425
A19: 2019/02/01 14:00:00 | B19: 0.942 | C19: 1.107 | D19: 2.049 | E19: 33.839 | F19: 2.321 | G19: 0 | H19: -18.71 | I19: 3.651 | J19: 27.45 | K19: 68.364
A20: 2019/02/01 15:00:00 | B20: 0.908 | C20: 1.056 | D20: 1.965 | E20: 33.279 | F20: 2.365 | G20: 0 | H20: -18.58 | I20: 3.132 | J20: 26.258 | K20: 66.863
A21: 2019/02/01 16:00:00 | B21: 2.104 | C21: 1.488 | D21: 3.594 | E21: 33.145 | F21: 2.195 | G21: 0 | H21: -18.555 | I21: 3.242 | J21: 30.363 | K21: 65.308
A22: 2019/02/01 17:00:00 | B22: 1.82 | C22: 0.856 | D22: 2.678 | E22: 33.26 | F22: 2.294 | G22: 0 | H22: -18.821 | I22: 3.141 | J22: 31.821 | K22: 65.969
A23: 2019/02/01 18:00:00 | B23: 0.337 | C23: 0.798 | D23: 1.136 | E23: 33.463 | F23: 2.249 | G23: 0 | H23: -19.295 | I23: 3.209 | J23: 30.707 | K23: 66.828
A24: 2019/02/01 19:00:00 | B24: 0.197 | C24: 0.696 | D24: 0.895 | E24: 33.222 | F24: 2.486 | G24: 0 | H24: -19.36 | I24: 3.165 | J24: 34.829 | K24: 65.832
A25: 2019/02/01 20:00:00 | B25: 0.204 | C25: 0.785 | D25: 0.991 | E25: 33.072 | F25: 2.371 | G25: 0 | H25: -19.256 | I25: 3.219 | J25: 43.839 | K25: 66.006
A26: 2019/02/01 21:00:00 | B26: -0.017 | C26: 0.507 | D26: 0.491 | E26: 34.001 | F26: 1.978 | G26: 0 | H26: -19.187 | I26: 2.964 | J26: 58.858 | K26: 62.842
A27: 2019/02/01 22:00:00 | B27: -0.082 | C27: 0.546 | D27: 0.466 | E27: 34.454 | F27: 1.646 | G27: 0 | H27: -19.546 | I27: 2.812 | J27: 65.364 | K27: 62.91
A28: 2019/02/01 23:00:00 | B28: 0.016 | C28: 0.472 | D28: 0.489 | E28: 34.318 | F28: 1.618 | G28: 0 | H28: -19.765 | I28: 3.379 | J28: 71.733 | K28: 64.554
A29: 2019/02/02 00:00:00 | B29: -0.147 | C29: 0.532 | D29: 0.387 | E29: 33.731 | F29: 1.478 | G29: 0 | H29: -19.793 | I29: 3.601 | J29: 74.176 | K29: 65.607
A30: 2019/02/02 01:00:00 | B30: -0.082 | C30: 0.598 | D30: 0.517 | E30: 33.52 | F30: 1.752 | G30: 0 | H30: -19.823 | I30: 3.595 | J30: 77.988 | K30: 66.088
A31: 2019/02/02 02:00:00 | B31: -0.108 | C31: 0.597 | D31: 0.489 | E31: 33.294 | F31: 1.661 | G31: 0 | H31: -19.715 | I31: 3.685 | J31: 78.865 | K31: 66.946
A32: 2019/02/02 03:00:00 | B32: -0.13 | C32: 0.477 | D32: 0.349 | E32: 33.403 | F32: 1.297 | G32: 0 | H32: -19.422 | I32: 3.515 | J32: 86.204 | K32: 67.486
A33: 2019/02/02 04:00:00 | B33: Z | C33: Z | D33: Z | E33: Z | F33: 1.702 | G33: 0.02 | H33: -19.122 | I33: 3.811 | J33: 89.734 | K33: 69.376
A34: 2019/02/02 05:00:00 | B34: -0.121 | C34: 0.833 | D34: 0.714 | E34: 33.899 | F34: 1.535 | G34: 0 | H34: -19.045 | I34: 3.645 | J34: 91.35 | K34: 71.018
A35: 2019/02/02 06:00:00 | B35: -0.161 | C35: 0.938 | D35: 0.777 | E35: 33.702 | F35: 1.571 | G35: 0 | H35: -18.979 | I35: 3.694 | J35: 90.099 | K35: 70.609
A36: 2019/02/02 07:00:00 | B36: -0.015 | C36: 0.76 | D36: 0.746 | E36: 34.143 | F36: 1.742 | G36: 0.01 | H36: -19.109 | I36: 4.071 | J36: 87.962 | K36: 70.697
A37: 2019/02/02 08:00:00 | B37: 0.2 | C37: 1.31 | D37: 1.512 | E37: 32.853 | F37: 1.888 | G37: 0.04 | H37: -19.502 | I37: 4.293 | J37: 84.782 | K37: 71.281
A38: 2019/02/02 09:00:00 | B38: -0.095 | C38: 0.542 | D38: 0.448 | E38: 32.716 | F38: 1.822 | G38: 0 | H38: -20.039 | I38: 4.747 | J38: 83.022 | K38: 72.443
A39: 2019/02/02 10:00:00 | B39: -0.088 | C39: 0.835 | D39: 0.749 | E39: 32.301 | F39: 1.639 | G39: 0 | H39: -20.298 | I39: 4.428 | J39: 80.588 | K39: 72.546
A40: 2019/02/02 11:00:00 | B40: 0.123 | C40: 0.539 | D40: 0.665 | E40: 32.512 | F40: 1.423 | G40: 0 | H40: -20.417 | I40: 4.472 | J40: 77.472 | K40: 72.437
A41: 2019/02/02 12:00:00 | B41: -0.182 | C41: 0.479 | D41: 0.298 | E41: 32.223 | F41: 1.142 | G41: 0 | H41: -20.483 | I41: 4.236 | J41: 72.356 | K41: 71.731
A42: 2019/02/02 13:00:00 | B42: -0.244 | C42: 0.529 | D42: 0.287 | E42: 32.19 | F42: 1.104 | G42: 0 | H42: -20.16 | I42: 3.855 | J42: 73.223 | K42: 70.398
A43: 2019/02/02 14:00:00 | B43: 0.11 | C43: 0.597 | D43: 0.709 | E43: 32.221 | F43: 1.039 | G43: 0 | H43: -19.523 | I43: 3.198 | J43: 65.59 | K43: 67.675
A44: 2019/02/02 15:00:00 | B44: 0.061 | C44: 0.528 | D44: 0.591 | E44: 32.633 | F44: 1.02 | G44: 0 | H44: -19.583 | I44: 2.895 | J44: 62.932 | K44: 66.313
A45: 2019/02/02 16:00:00 | B45: 0.04 | C45: 0.531 | D45: 0.571 | E45: 32.932 | F45: 0.992 | G45: 0 | H45: -19.843 | I45: 2.591 | J45: 54.201 | K45: 65.696
A46: 2019/02/02 17:00:00 | B46: 0.173 | C46: 0.798 | D46: 0.974 | E46: 32.433 | F46: 1.014 | G46: 0 | H46: -21.501 | I46: 3.777 | J46: 27.357 | K46: 66.445
A47: 2019/02/02 18:00:00 | B47: 0.547 | C47: 1.053 | D47: 1.6 | E47: 32.132 | F47: 1 | G47: 0 | H47: -22.919 | I47: 3.426 | J47: 26.164 | K47: 66.953
A48: 2019/02/02 19:00:00 | B48: 0.29 | C48: 0.823 | D48: 1.115 | E48: 32.081 | F48: 0.956 | G48: 0 | H48: -23.67 | I48: 2.521 | J48: 28.658 | K48: 66.448
A49: 2019/02/02 20:00:00 | B49: 0.403 | C49: 1.145 | D49: 1.55 | E49: 31.662 | F49: 0.85 | G49: 0 | H49: -23.527 | I49: 2.248 | J49: 25.449 | K49: 65.604
A50: 2019/02/02 21:00:00 | B50: 0.595 | C50: 1.209 | D50: 1.807 | E50: 31.488 | F50: 0.794 | G50: 0 | H50: -23.682 | I50: 2.547 | J50: 18.786 | K50: 65.717
A51: 2019/02/02 22:00:00 | B51: 0.573 | C51: 1.279 | D51: 1.854 | E51: 31.379 | F51: 0.885 | G51: 0 | H51: -23.747 | I51: 2.214 | J51: 19.206 | K51: 65.106
A52: 2019/02/02 23:00:00 | B52: 0.292 | C52: 1.232 | D52: 1.525 | E52: 31.257 | F52: 0.939 | G52: 0 | H52: -23.719 | I52: 2.295 | J52: 15.446 | K52: 64.286
A53: 2019/02/03 00:00:00 | B53: -0.003 | C53: 1.322 | D53: 1.321 | E53: 31.131 | F53: 1.043 | G53: 0 | H53: -23.516 | I53: 1.914 | J53: 337.075 | K53: 64.934
A54: 2019/02/03 01:00:00 | B54: 2.517 | C54: 3.37 | D54: 5.888 | E54: 29.993 | F54: 1.135 | G54: 0 | H54: -23.116 | I54: 1.756 | J54: 298.299 | K54: 65.225
A55: 2019/02/03 02:00:00 | B55: -0.071 | C55: 3.407 | D55: 3.337 | E55: 29.266 | F55: 1.498 | G55: 0 | H55: -22.957 | I55: 1.155 | J55: 303.214 | K55: 64.152
A56: 2019/02/03 03:00:00 | B56: Z | C56: Z | D56: Z | E56: Z | F56: 1.418 | G56: 0 | H56: -23.334 | I56: 1.016 | J56: 271.858 | K56: 66.245
A57: 2019/02/03 04:00:00 | B57: 0.146 | C57: 9.7 | D57: 9.848 | E57: 23.858 | F57: 1.385 | G57: 0 | H57: -23.243 | I57: 1.931 | J57: 313.167 | K57: 66.585
A58: 2019/02/03 05:00:00 | B58: 0.393 | C58: 2.21 | D58: 2.603 | E58: 30.976 | F58: 1.048 | G58: 0 | H58: -23.114 | I58: 2.816 | J58: 8.908 | K58: 63.957
A59: 2019/02/03 06:00:00 | B59: 0.955 | C59: 2.017 | D59: 2.975 | E59: 32.576 | F59: 0.99 | G59: 0 | H59: -23.332 | I59: 2.826 | J59: 11.958 | K59: 63.821
A60: 2019/02/03 07:00:00 | B60: 0.565 | C60: 1.126 | D60: 1.692 | E60: 32.604 | F60: 0.987 | G60: 0 | H60: -23.44 | I60: 2.287 | J60: 13.074 | K60: 65.376
A61: 2019/02/03 08:00:00 | B61: 0.66 | C61: 1.789 | D61: 2.45 | E61: 32.13 | F61: 1.116 | G61: 0 | H61: -23.753 | I61: 1.399 | J61: 11.236 | K61: 65.724
A62: 2019/02/03 09:00:00 | B62: 0.983 | C62: 2.427 | D62: 3.411 | E62: 31.597 | F62: 1.215 | G62: 0 | H62: -24.397 | I62: 1.446 | J62: 13.368 | K62: 66.394
A63: 2019/02/03 10:00:00 | B63: 1.011 | C63: 2.363 | D63: 3.377 | E63: 32.588 | F63: 1.881 | G63: 0 | H63: -24.325 | I63: 1.746 | J63: 18.112 | K63: 65.494
A64: 2019/02/03 11:00:00 | B64: 1.116 | C64: 1.619 | D64: 2.736 | E64: 32.957 | F64: 1.82 | G64: 0 | H64: -24.262 | I64: 2.1 | J64: 16.276 | K64: 65.264
A65: 2019/02/03 12:00:00 | B65: 0.748 | C65: 1.181 | D65: 1.933 | E65: 33.393 | F65: 2.056 | G65: 0 | H65: -24.247 | I65: 3.076 | J65: 12.76 | K65: 64.934
A66: 2019/02/03 13:00:00 | B66: 1.005 | C66: 1.357 | D66: 2.364 | E66: 33.331 | F66: 2.154 | G66: 0 | H66: -24.226 | I66: 2.715 | J66: 19.145 | K66: 64.73
A67: 2019/02/03 14:00:00 | B67: 1.18 | C67: 1.355 | D67: 2.536 | E67: 33.499 | F67: 1.573 | G67: 0 | H67: -24.401 | I67: 2.783 | J67: 20.226 | K67: 64.444
A68: 2019/02/03 15:00:00 | B68: 1.247 | C68: 1.335 | D68: 2.583 | E68: 33.372 | F68: 1.174 | G68: 0 | H68: -24.62 | I68: 2.858 | J68: 23.949 | K68: 64.475
A69: 2019/02/03 16:00:00 | B69: 0.852 | C69: 1.328 | D69: 2.181 | E69: 33.417 | F69: 1.417 | G69: 0 | H69: -24.519 | I69: 2.198 | J69: 22.429 | K69: 63.484
A70: 2019/02/03 17:00:00 | B70: 0.706 | C70: 1.22 | D70: 1.927 | E70: 33.69 | F70: 2.932 | G70: 0 | H70: -24.553 | I70: 2.035 | J70: 17.489 | K70: 63.472
A71: 2019/02/03 18:00:00 | B71: 0.735 | C71: 1.539 | D71: 2.275 | E71: 33.85 | F71: 3.046 | G71: 0 | H71: -24.64 | I71: 2.023 | J71: 25.516 | K71: 63.184
A72: 2019/02/03 19:00:00 | B72: 0.805 | C72: 1.994 | D72: 2.8 | E72: 33.465 | F72: 5.73 | G72: 0 | H72: -24.782 | I72: 2.071 | J72: 23.216 | K72: 63.503
A73: 2019/02/03 20:00:00 | B73: 0.825 | C73: 2.097 | D73: 2.924 | E73: 33.713 | F73: 2.476 | G73: 0 | H73: -24.793 | I73: 2.206 | J73: 26.437 | K73: 63.75
A74: 2019/02/03 21:00:00 | B74: 0.299 | C74: 1.305 | D74: 1.607 | E74: 33.778 | F74: 2.365 | G74: 0 | H74: -24.633 | I74: 2.186 | J74: 29.05 | K74: 64.029
A75: 2019/02/03 22:00:00 | B75: 2.228 | C75: 2.944 | D75: 5.173 | E75: 32.832 | F75: 2.636 | G75: 0 | H75: -24.417 | I75: 2.248 | J75: 29.198 | K75: 64.111
A76: 2019/02/03 23:00:00 | B76: 2.779 | C76: 3.059 | D76: 5.84 | E76: 33.069 | F76: 3.467 | G76: 0 | H76: -24.076 | I76: 2.518 | J76: 28.868 | K76: 64.763
A77: 2019/02/04 00:00:00 | B77: 0.072 | C77: 0.709 | D77: 0.784 | E77: 34.807 | F77: 3.105 | G77: 0 | H77: -23.739 | I77: 2.767 | J77: 36.985 | K77: 65.172
A78: 2019/02/04 01:00:00 | B78: 0.016 | C78: 0.653 | D78: 0.672 | E78: 34.511 | F78: 3.006 | G78: 0 | H78: -23.563 | I78: 2.917 | J78: 37.812 | K78: 65.2
A79: 2019/02/04 02:00:00 | B79: Z | C79: Z | D79: Z | E79: Z | F79: 2.572 | G79: 0 | H79: -23.471 | I79: 2.436 | J79: 40.556 | K79: 65.878
A80: 2019/02/04 03:00:00 | B80: 0.041 | C80: 0.609 | D80: 0.653 | E80: 34.51 | F80: 2.538 | G80: 0 | H80: -23.401 | I80: 1.987 | J80: 46.976 | K80: 65.907
A81: 2019/02/04 04:00:00 | B81: 0.142 | C81: 0.654 | D81: 0.798 | E81: 34.384 | F81: 2.131 | G81: 0 | H81: -23.647 | I81: 1.975 | J81: 49.296 | K81: 65.445
A82: 2019/02/04 05:00:00 | B82: 0.133 | C82: 0.57 | D82: 0.705 | E82: 33.726 | F82: 2.112 | G82: 0 | H82: -24.1 | I82: 2.232 | J82: 39.202 | K82: 65.766
A83: 2019/02/04 06:00:00 | B83: 0.682 | C83: 1.116 | D83: 1.8 | E83: 33.027 | F83: 1.976 | G83: 0 | H83: -24.314 | I83: 2.038 | J83: 44.719 | K83: 65.365
A84: 2019/02/04 07:00:00 | B84: 0.204 | C84: 0.58 | D84: 0.785 | E84: 32.939 | F84: 1.702 | G84: 0 | H84: -24.61 | I84: 1.755 | J84: 56.322 | K84: 64.677
A85: 2019/02/04 08:00:00 | B85: 0.055 | C85: 0.891 | D85: 0.949 | E85: 32.644 | F85: 2.385 | G85: 0 | H85: -24.816 | I85: 1.602 | J85: 48.296 | K85: 64.828
A86: 2019/02/04 09:00:00 | B86: 0.302 | C86: 0.912 | D86: 1.216 | E86: 32.893 | F86: 2.07 | G86: 0 | H86: -24.885 | I86: 1.45 | J86: 45.577 | K86: 64.879
A87: 2019/02/04 10:00:00 | B87: 0.268 | C87: 0.92 | D87: 1.191 | E87: 32.848 | F87: 2.067 | G87: 0 | H87: -24.882 | I87: 1.571 | J87: 50.996 | K87: 64.902
A88: 2019/02/04 11:00:00 | B88: 0.211 | C88: 0.979 | D88: 1.192 | E88: 32.736 | F88: 1.924 | G88: 0 | H88: -24.521 | I88: 1.858 | J88: 49.799 | K88: 64.29
A89: 2019/02/04 12:00:00 | B89: 0.163 | C89: 0.821 | D89: 0.988 | E89: 32.928 | F89: 1.993 | G89: 0 | H89: -24.126 | I89: 1.57 | J89: 58.424 | K89: 62.964
A90: 2019/02/04 13:00:00 | B90: 0.439 | C90: 0.731 | D90: 1.173 | E90: 32.927 | F90: 2.156 | G90: 0 | H90: -24.135 | I90: 1.79 | J90: 72.823 | K90: 62.295
A91: 2019/02/04 14:00:00 | B91: 0.514 | C91: 0.869 | D91: 1.386 | E91: 32.753 | F91: 2.337 | G91: 0 | H91: -23.76 | I91: 1.375 | J91: 74.619 | K91: 61.244
A92: 2019/02/04 15:00:00 | B92: 0.588 | C92: 1.028 | D92: 1.619 | E92: 32.49 | F92: 2.717 | G92: 0 | H92: -23.943 | I92: 2.226 | J92: 76.576 | K92: 62.203
A93: 2019/02/04 16:00:00 | B93: 1.019 | C93: 1.657 | D93: 2.68 | E93: 32.318 | F93: 3.096 | G93: 0 | H93: -23.786 | I93: 1.932 | J93: 91.02 | K93: 63.317
A94: 2019/02/04 17:00:00 | B94: 1.634 | C94: 2.408 | D94: 4.046 | E94: 31.853 | F94: 5.475 | G94: 0 | H94: -23.273 | I94: 1.229 | J94: 116.634 | K94: 63.421
A95: 2019/02/04 18:00:00 | B95: 1.731 | C95: 2.985 | D95: 4.718 | E95: 31.324 | F95: 3.97 | G95: 0 | H95: -22.781 | I95: 0.679 | J95: 140.704 | K95: 62.73
A96: 2019/02/04 19:00:00 | B96: 0.487 | C96: 3.057 | D96: 3.547 | E96: 30.903 | F96: 4.978 | G96: 0 | H96: -22.985 | I96: 0.904 | J96: 77.14 | K96: 64.335
A97: 2019/02/04 20:00:00 | B97: 0.458 | C97: 3.216 | D97: 3.679 | E97: 30.811 | F97: 5.071 | G97: 0 | H97: -22.996 | I97: 1.01 | J97: 85.926 | K97: 65.934
A98: 2019/02/04 21:00:00 | B98: 0.378 | C98: 1.994 | D98: 2.376 | E98: 31.613 | F98: 3.478 | G98: 0 | H98: -23.022 | I98: 1.311 | J98: 88.049 | K98: 67.405
A99: 2019/02/04 22:00:00 | B99: 0.769 | C99: 2.128 | D99: 2.901 | E99: 31.521 | F99: 5.143 | G99: 0 | H99: -22.865 | I99: 1.202 | J99: 98.564 | K99: 67.6
A100: 2019/02/04 23:00:00 | B100: 0.806 | C100: 2.336 | D100: 3.147 | E100: 31.716 | F100: 6.03 | G100: 0 | H100: -22.849 | I100: 1.491 | J100: 103.803 | K100: 68.821
A101: 2019/02/05 00:00:00 | B101: 0.424 | C101: 3.712 | D101: 4.14 | E101: 31.278 | F101: 2.011 | G101: 0 | H101: -22.309 | I101: 0.793 | J101: 124.945 | K101: 68.254
A102: 2019/02/05 01:00:00 | B102: Z | C102: Z | D102: Z | E102: Z | F102: 1.669 | G102: 0 | H102: -22.27 | I102: 0.423 | J102: 103.787 | K102: 67.326
A103: 2019/02/05 02:00:00 | B103: 0.599 | C103: 5.678 | D103: 6.281 | E103: 29.289 | F103: 1.332 | G103: 0 | H103: -22.949 | I103: 0.607 | J103: 62.047 | K103: 67.154
A104: 2019/02/05 03:00:00 | B104: 1.665 | C104: 10.323 | D104: 11.993 | E104: 25.296 | F104: 1.464 | G104: 0 | H104: -24.357 | I104: 0.104 | J104: 20.775 | K104: 66.204
A105: 2019/02/05 04:00:00 | B105: 1.689 | C105: 10.059 | D105: 11.752 | E105: 24.24 | F105: 3.299 | G105: 0 | H105: -26.266 | I105: 0.156 | J105: 28.633 | K105: 65.037
A106: 2019/02/05 05:00:00 | B106: 3.076 | C106: 15.761 | D106: 18.841 | E106: 19.876 | F106: 2.451 | G106: 0 | H106: -27.806 | I106: 0.119 | J106: 121.608 | K106: 63.22
A107: 2019/02/05 06:00:00 | B107: 0.489 | C107: 9.44 | D107: 9.933 | E107: 22.236 | F107: 1.949 | G107: 0 | H107: -29.582 | I107: 0.71 | J107: 324.049 | K107: 65.071
A108: 2019/02/05 07:00:00 | B108: 1.59 | C108: 11.943 | D108: 13.535 | E108: 19.961 | F108: 2.352 | G108: 0 | H108: -30.61 | I108: 0.364 | J108: 175.867 | K108: 63.56
A109: 2019/02/05 08:00:00 | B109: 5.592 | C109: 22.731 | D109: 28.327 | E109: 11.294 | F109: 3.143 | G109: 0 | H109: -31.412 | I109: 0.449 | J109: 200.165 | K109: 65.509
A110: 2019/02/05 09:00:00 | B110: 15.844 | C110: 34.301 | D110: 50.149 | E110: 4.583 | F110: 4.534 | G110: 0 | H110: -31.696 | I110: 0.042 | J110: 59.993 | K110: 61.327
A111: 2019/02/05 10:00:00 | B111: 16.577 | C111: 25.836 | D111: 42.416 | E111: 11.897 | F111: 4.461 | G111: 0 | H111: -31.395 | I111: 0.053 | J111: 287.305 | K111: 61.682
A112: 2019/02/05 11:00:00 | B112: 27.674 | C112: 22.184 | D112: 49.861 | E112: 15.82 | F112: 4.501 | G112: 0 | H112: -27.112 | I112: 0.27 | J112: 73.353 | K112: 60.894
A113: 2019/02/05 12:00:00 | B113: 17.452 | C113: 13.743 | D113: 31.197 | E113: 24.44 | F113: 5.809 | G113: 0 | H113: -23.725 | I113: 0.803 | J113: 309.35 | K113: 60.849
A114: 2019/02/05 13:00:00 | B114: 19.57 | C114: 13.77 | D114: 33.343 | E114: 24.788 | F114: 7.466 | G114: 0 | H114: -21.868 | I114: 0.661 | J114: 8.442 | K114: 58.225
A115: 2019/02/05 14:00:00 | B115: 7.627 | C115: 7.342 | D115: 14.971 | E115: 30.232 | F115: 11.78 | G115: 0 | H115: -23.201 | I115: 1.674 | J115: 10.663 | K115: 59.032
A116: 2019/02/05 15:00:00 | B116: 2.424 | C116: 2.554 | D116: 4.98 | E116: 31.374 | F116: 3.759 | G116: 0 | H116: -23.936 | I116: 2.2 | J116: 17.753 | K116: 60.491
A117: 2019/02/05 16:00:00 | B117: 4.979 | C117: 4.339 | D117: 9.319 | E117: 30.051 | F117: 5.61 | G117: 0 | H117: -24.195 | I117: 1.898 | J117: 12.963 | K117: 61.004
A118: 2019/02/05 17:00:00 | B118: 1.644 | C118: 3.406 | D118: 5.051 | E118: 30.537 | F118: 6.296 | G118: 0 | H118: -24.452 | I118: 1.56 | J118: 1.339 | K118: 60.497
A119: 2019/02/05 18:00:00 | B119: 2.23 | C119: 6.23 | D119: 8.462 | E119: 28.18 | F119: 6.923 | G119: 0 | H119: -26.239 | I119: 1.162 | J119: 18.003 | K119: 63.638
A120: 2019/02/05 19:00:00 | B120: 0.968 | C120: 14.463 | D120: 15.432 | E120: 22.607 | F120: 55.478 | G120: 0 | H120: -28.158 | I120: 1.194 | J120: 351.371 | K120: 66.696
A121: 2019/02/05 20:00:00 | B121: 1.778 | C121: 14.015 | D121: 15.795 | E121: 21.81 | F121: 17.003 | G121: 0 | H121: -29.368 | I121: 0.867 | J121: 344.686 | K121: 67.756
A122: 2019/02/05 21:00:00 | B122: 0.698 | C122: 11.445 | D122: 12.143 | E122: 22.481 | F122: 8.941 | G122: 0 | H122: -29.521 | I122: 0.746 | J122: 337.687 | K122: 66.694
A123: 2019/02/05 22:00:00 | B123: 0.857 | C123: 24.602 | D123: 25.459 | E123: 12.06 | F123: 16.939 | G123: 0 | H123: -30.249 | I123: 0.882 | J123: 333.258 | K123: 66.384
A124: 2019/02/05 23:00:00 | B124: 2.758 | C124: 25.921 | D124: 28.679 | E124: 12.154 | F124: 39.555 | G124: 0 | H124: -30.983 | I124: 1.046 | J124: 332.642 | K124: 66.251
A125: 2019/02/06 00:00:00 | B125: Z | C125: Z | D125: Z | E125: Z | F125: 28.01 | G125: 0 | H125: -31.431 | I125: 1.124 | J125: 322.287 | K125: 65.927
A126: 2019/02/06 01:00:00 | B126: 0.999 | C126: 29.139 | D126: 30.14 | E126: 10.961 | F126: 62.439 | G126: 0 | H126: -31.919 | I126: 1.307 | J126: 317.533 | K126: 64.694
A127: 2019/02/06 02:00:00 | B127: 0.692 | C127: 24.836 | D127: 25.529 | E127: 14.41 | F127: 72.998 | G127: 0 | H127: -32.47 | I127: 1.063 | J127: 329.393 | K127: 65.455
A128: 2019/02/06 03:00:00 | B128: 2.13 | C128: 18.688 | D128: 20.817 | E128: 15.569 | F128: 32.01 | G128: 0 | H128: -34.481 | I128: 0.511 | J128: 214.598 | K128: 63.539
A129: 2019/02/06 04:00:00 | B129: 9.905 | C129: 22.316 | D129: 32.22 | E129: 11.846 | F129: 26.114 | G129: 0 | H129: -36.384 | I129: 0.522 | J129: 188.19 | K129: 61.763
A130: 2019/02/06 05:00:00 | B130: 2.958 | C130: 21.607 | D130: 24.565 | E130: 11.497 | F130: 13.432 | G130: 0 | H130: -37.158 | I130: 0.539 | J130: 198.251 | K130: 62.103
A131: 2019/02/06 06:00:00 | B131: 2.398 | C131: 31.836 | D131: 34.233 | E131: 4.12 | F131: 12.331 | G131: 0 | H131: -35.695 | I131: 0.416 | J131: 274.72 | K131: 62.076
A132: 2019/02/06 07:00:00 | B132: 8.471 | C132: 34.31 | D132: 42.781 | E132: 1.922 | F132: 13.066 | G132: 0 | H132: -36.558 | I132: 0.438 | J132: 207.475 | K132: 60.329
A133: 2019/02/06 08:00:00 | B133: 6.584 | C133: 32.738 | D133: 39.321 | E133: 1.197 | F133: 16.305 | G133: 0 | H133: -39.365 | I133: 0.778 | J133: 185.371 | K133: 60.353
A134: 2019/02/06 09:00:00 | B134: 10.847 | C134: 32.144 | D134: 42.99 | E134: 4.249 | F134: 22.68 | G134: 0 | H134: -38.918 | I134: 0.499 | J134: 193.256 | K134: 60.669
A135: 2019/02/06 10:00:00 | B135: 16.807 | C135: 22.296 | D135: 39.103 | E135: 12.444 | F135: 19.927 | G135: 0 | H135: -37.501 | I135: 0.5 | J135: 206.851 | K135: 60.722
A136: 2019/02/06 11:00:00 | B136: 16.258 | C136: 13.891 | D136: 30.149 | E136: 19.218 | F136: 8.621 | G136: 0 | H136: -33.563 | I136: 0.407 | J136: 246.812 | K136: 60.906
A137: 2019/02/06 12:00:00 | B137: 14.908 | C137: 10.802 | D137: 25.71 | E137: 23.348 | F137: 8.066 | G137: 0 | H137: -30.917 | I137: 0.712 | J137: 277.894 | K137: 61.141
A138: 2019/02/06 13:00:00 | B138: 23.698 | C138: 13.972 | D138: 37.668 | E138: 24.082 | F138: 10.464 | G138: 0 | H138: -28.813 | I138: 2.656 | J138: 319.76 | K138: 60.116
A139: 2019/02/06 14:00:00 | B139: 42.424 | C139: 24.15 | D139: 66.573 | E139: 21.651 | F139: 15.043 | G139: 0 | H139: -26.007 | I139: 1.82 | J139: 315.348 | K139: 59.03
A140: 2019/02/06 15:00:00 | B140: 51.341 | C140: 29.708 | D140: 81.049 | E140: 20.042 | F140: 20.799 | G140: 0 | H140: -25.015 | I140: 1.813 | J140: 328.99 | K140: 57.518
A141: 2019/02/06 16:00:00 | B141: 53.656 | C141: 34.95 | D141: 88.606 | E141: 16.833 | F141: 23.094 | G141: 0 | H141: -24.139 | I141: 0.701 | J141: 351.467 | K141: 56.551
A142: 2019/02/06 17:00:00 | B142: 52.518 | C142: 40.686 | D142: 93.203 | E142: 12.755 | F142: 26.731 | G142: 0 | H142: -24.015 | I142: 0.258 | J142: 11.718 | K142: 54.588
A143: 2019/02/06 18:00:00 | B143: 35.821 | C143: 43.557 | D143: 79.376 | E143: 7.804 | F143: 24.801 | G143: 0 | H143: -25.386 | I143: 0.462 | J143: 211.417 | K143: 56.118
A144: 2019/02/06 19:00:00 | B144: 11.619 | C144: 38.701 | D144: 50.319 | E144: 5.311 | F144: 18.633 | G144: 0 | H144: -28.413 | I144: 0.645 | J144: 244.195 | K144: 61.144
A145: 2019/02/06 20:00:00 | B145: 3.658 | C145: 28.78 | D145: 32.437 | E145: 9.44 | F145: 16.773 | G145: 0 | H145: -30.335 | I145: 0.744 | J145: 184.022 | K145: 61.733
A146: 2019/02/06 21:00:00 | B146: 3.991 | C146: 23.166 | D146: 27.154 | E146: 13.394 | F146: 12.472 | G146: 0 | H146: -30.773 | I146: 0.617 | J146: 191.075 | K146: 63.803
A147: 2019/02/06 22:00:00 | B147: 4.86 | C147: 26.723 | D147: 31.582 | E147: 10.113 | F147: 12.531 | G147: 0 | H147: -30.97 | I147: 0.69 | J147: 205.856 | K147: 62.623
A148: 2019/02/06 23:00:00 | B148: Z | C148: Z | D148: Z | E148: Z | F148: 13.416 | G148: 0 | H148: -33.456 | I148: 0.87 | J148: 183.262 | K148: 63.98
A149: 2019/02/07 00:00:00 | B149: 4.594 | C149: 22.888 | D149: 27.48 | E149: 12.499 | F149: 11.05 | G149: 0 | H149: -33.349 | I149: 0.767 | J149: 195.492 | K149: 64.375
A150: 2019/02/07 01:00:00 | B150: 2.421 | C150: 17.43 | D150: 19.85 | E150: 15.605 | F150: 10.484 | G150: 0 | H150: -34.628 | I150: 0.838 | J150: 180.261 | K150: 63.155
A151: 2019/02/07 02:00:00 | B151: 1.808 | C151: 12.464 | D151: 14.27 | E151: 19.945 | F151: 8.794 | G151: 0 | H151: -34.565 | I151: 1.141 | J151: 191.554 | K151: 65.086
A152: 2019/02/07 03:00:00 | B152: 1.931 | C152: 10.49 | D152: 12.419 | E152: 21.046 | F152: 7.55 | G152: 0 | H152: -35.375 | I152: 1.185 | J152: 182.662 | K152: 63.975
A153: 2019/02/07 04:00:00 | B153: 0.972 | C153: 9.412 | D153: 10.384 | E153: 22.336 | F153: 7.271 | G153: 0 | H153: -34.842 | I153: 1.277 | J153: 196.865 | K153: 64.61
A154: 2019/02/07 05:00:00 | B154: 1.462 | C154: 9.937 | D154: 11.399 | E154: 21.992 | F154: 7.015 | G154: 0 | H154: -35.367 | I154: 1.327 | J154: 188.024 | K154: 64.089
A155: 2019/02/07 06:00:00 | B155: 1.695 | C155: 10.129 | D155: 11.823 | E155: 21.58 | F155: 7.073 | G155: 0 | H155: -35.383 | I155: 0.966 | J155: 189.038 | K155: 63.684
A156: 2019/02/07 07:00:00 | B156: 1.396 | C156: 11.554 | D156: 12.95 | E156: 20.676 | F156: 7.543 | G156: 0 | H156: -35.422 | I156: 0.888 | J156: 192.676 | K156: 62.775
A157: 2019/02/07 08:00:00 | B157: 2.511 | C157: 14.364 | D157: 16.875 | E157: 18.428 | F157: 7.316 | G157: 0 | H157: -35.703 | I157: 0.702 | J157: 193.106 | K157: 62.226
A158: 2019/02/07 09:00:00 | B158: 4.881 | C158: 12.903 | D158: 17.783 | E158: 19.497 | F158: 7.606 | G158: 0 | H158: -36.192 | I158: 0.992 | J158: 177.359 | K158: 62.356
A159: 2019/02/07 10:00:00 | B159: 4.727 | C159: 8.927 | D159: 13.653 | E159: 23.465 | F159: 6.694 | G159: 0 | H159: -34.424 | I159: 1.097 | J159: 219.764 | K159: 63.928
A160: 2019/02/07 11:00:00 | B160: 1.943 | C160: 3.066 | D160: 5.008 | E160: 14.777 | F160: 3.533 | G160: 0 | H160: -33.003 | I160: 0.843 | J160: 212.584 | K160: 63.439
A161: 2019/02/07 12:00:00 | B161: 5.96 | C161: 5.36 | D161: 11.319 | E161: 26.329 | F161: 5.56 | G161: 0 | H161: -31.108 | I161: 1.178 | J161: 244.758 | K161: 63.187
A162: 2019/02/07 13:00:00 | B162: 2.771 | C162: 3.6 | D162: 6.37 | E162: 26.958 | F162: 6.188 | G162: 0 | H162: -29.203 | I162: 1.251 | J162: 239.159 | K162: 63.624
A163: 2019/02/07 14:00:00 | B163: 3.988 | C163: 4.417 | D163: 8.403 | E163: 28.703 | F163: 5.997 | G163: 0 | H163: -27.523 | I163: 1.35 | J163: 241.546 | K163: 62.977
A164: 2019/02/07 15:00:00 | B164: 3.554 | C164: 4.731 | D164: 8.284 | E164: 29.347 | F164: 5.268 | G164: 0 | H164: -26.116 | I164: 1.286 | J164: 232.287 | K164: 62.095
A165: 2019/02/07 16:00:00 | B165: 2.487 | C165: 3.843 | D165: 6.33 | E165: 30.202 | F165: 5.007 | G165: 0 | H165: -25.347 | I165: 1.895 | J165: 303.382 | K165: 60.397
A166: 2019/02/07 17:00:00 | B166: 5.679 | C166: 6.09 | D166: 11.769 | E166: 28.344 | F166: 5.975 | G166: 0 | H166: -24.829 | I166: 1.983 | J166: 308.387 | K166: 57.839
A167: 2019/02/07 18:00:00 | B167: 2.806 | C167: 9.082 | D167: 11.888 | E167: 25.988 | F167: 6.147 | G167: 0 | H167: -25.938 | I167: 0.466 | J167: 218.374 | K167: 58.075
A168: 2019/02/07 19:00:00 | B168: 4.73 | C168: 11.572 | D168: 16.302 | E168: 22.793 | F168: 6.108 | G168: 0 | H168: -29.262 | I168: 0.929 | J168: 177.706 | K168: 63.776
A169: 2019/02/07 20:00:00 | B169: 1.94 | C169: 10.779 | D169: 12.719 | E169: 24.697 | F169: 5.911 | G169: 0 | H169: -31.187 | I169: 0.826 | J169: 179.577 | K169: 66.252
A170: 2019/02/07 21:00:00 | B170: 4.632 | C170: 15.054 | D170: 19.686 | E170: 21.657 | F170: 7.783 | G170: 0 | H170: -32.135 | I170: 0.79 | J170: 182.635 | K170: 65.657
A171: 2019/02/07 22:00:00 | B171: Z | C171: Z | D171: Z | E171: Z | F171: 7.414 | G171: 0 | H171: -33.012 | I171: 0.556 | J171: 182.386 | K171: 64.056
A172: 2019/02/07 23:00:00 | B172: 3.431 | C172: 18.6 | D172: 22.032 | E172: 17.169 | F172: 7.389 | G172: 0 | H172: -33.778 | I172: 0.476 | J172: 125.171 | K172: 61.342
A173: 2019/02/08 00:00:00 | B173: 2.578 | C173: 14.196 | D173: 16.775 | E173: 19.927 | F173: 7.123 | G173: 0 | H173: -34.678 | I173: 0.599 | J173: 100.914 | K173: 60.077
A174: 2019/02/08 01:00:00 | B174: 1.103 | C174: 15.066 | D174: 16.169 | E174: 16.675 | F174: 7.042 | G174: 0 | H174: -35.35 | I174: 0.312 | J174: 205.779 | K174: 60.298
A175: 2019/02/08 02:00:00 | B175: 2.098 | C175: 17.572 | D175: 19.669 | E175: 14.185 | F175: 6.592 | G175: 0 | H175: -36.132 | I175: 0.062 | J175: 89.643 | K175: 57.791
A176: 2019/02/08 03:00:00 | B176: 2.162 | C176: 14.595 | D176: 16.756 | E176: 15.536 | F176: 7.723 | G176: 0 | H176: -37.487 | I176: 0.564 | J176: 69.61 | K176: 58.509
A177: 2019/02/08 04:00:00 | B177: 1.096 | C177: 15.863 | D177: 16.959 | E177: 15.396 | F177: 15.317 | G177: 0 | H177: -37.526 | I177: 0.371 | J177: 104.669 | K177: 59.857
A178: 2019/02/08 05:00:00 | B178: 0.87 | C178: 12.732 | D178: 13.602 | E178: 23.971 | F178: 13.9 | G178: 0 | H178: -37.675 | I178: 0.5 | J178: 143.626 | K178: 60.688
A179: 2019/02/08 06:00:00 | B179: 0.291 | C179: 10.939 | D179: 11.23 | E179: 19.621 | F179: 8.593 | G179: 0 | H179: -37.27 | I179: 0.562 | J179: 72.523 | K179: 62.02
A180: 2019/02/08 07:00:00 | B180: 0.684 | C180: 10.521 | D180: 11.205 | E180: 19.293 | F180: 6.678 | G180: 0 | H180: -37.552 | I180: 0.376 | J180: 153.482 | K180: 61.467
A181: 2019/02/08 08:00:00 | B181: 1.119 | C181: 11.798 | D181: 12.916 | E181: 20.186 | F181: 11.052 | G181: 0 | H181: -37.153 | I181: 0.269 | J181: 95.1 | K181: 61.591
A182: 2019/02/08 09:00:00 | B182: 1.369 | C182: 10.613 | D182: 11.982 | E182: 22.189 | F182: 7.98 | G182: 0 | H182: -37.137 | I182: 0.446 | J182: 123.355 | K182: 62.007
A183: 2019/02/08 10:00:00 | B183: 2.343 | C183: 6.219 | D183: 8.562 | E183: 24.222 | F183: 6.4 | G183: 0 | H183: -36.65 | I183: 0.999 | J183: 51.276 | K183: 62.636
A184: 2019/02/08 11:00:00 | B184: 2.657 | C184: 3.845 | D184: 6.501 | E184: 27.162 | F184: 5.043 | G184: 0 | H184: -34.322 | I184: 1.818 | J184: 83.358 | K184: 63.089
A185: 2019/02/08 12:00:00 | B185: 3.78 | C185: 3.779 | D185: 7.558 | E185: 27.678 | F185: 5.326 | G185: 0 | H185: -32.366 | I185: 1.382 | J185: 94.035 | K185: 62.82
A186: 2019/02/08 13:00:00 | B186: 3.315 | C186: 3.396 | D186: 6.709 | E186: 28.099 | F186: 4.271 | G186: 0 | H186: -29.84 | I186: 1.483 | J186: 55.82 | K186: 59.66
A187: 2019/02/08 14:00:00 | B187: 3.347 | C187: 3.367 | D187: 6.713 | E187: 28.79 | F187: 4.354 | G187: 0 | H187: -28.066 | I187: 1.867 | J187: 56.123 | K187: 55.528
A188: 2019/02/08 15:00:00 | B188: 3.225 | C188: 3.437 | D188: 6.661 | E188: 29.207 | F188: 4.372 | G188: 0 | H188: -28.322 | I188: 2.059 | J188: 62.554 | K188: 57.915
A189: 2019/02/08 16:00:00 | B189: 3.066 | C189: 3.475 | D189: 6.54 | E189: 29.379 | F189: 5.328 | G189: 0 | H189: -27.888 | I189: 2.042 | J189: 63.103 | K189: 59.095
A190: 2019/02/08 17:00:00 | B190: 2.658 | C190: 4.383 | D190: 7.039 | E190: 28.366 | F190: 6.846 | G190: 0 | H190: -27.935 | I190: 1.972 | J190: 63.395 | K190: 58.813
A191: 2019/02/08 18:00:00 | B191: 1.347 | C191: 5.46 | D191: 6.806 | E191: 27.248 | F191: 6.221 | G191: 0 | H191: -28.671 | I191: 1.232 | J191: 91.911 | K191: 60.331
A192: 2019/02/08 19:00:00 | B192: 0.548 | C192: 8.39 | D192: 8.937 | E192: 24.561 | F192: 8.057 | G192: 0 | H192: -30.056 | I192: 1.194 | J192: 93.656 | K192: 62.23
A193: 2019/02/08 20:00:00 | B193: 1.174 | C193: 6.227 | D193: 7.398 | E193: 26.378 | F193: 8.471 | G193: 0 | H193: -30.929 | I193: 1.207 | J193: 92.214 | K193: 64.714
A194: 2019/02/08 21:00:00 | B194: Z | C194: Z | D194: Z | E194: Z | F194: 9.686 | G194: 0 | H194: -30.747 | I194: 1.182 | J194: 103.472 | K194: 64.184
A195: 2019/02/08 22:00:00 | B195: 1.488 | C195: 7.605 | D195: 9.091 | E195: 25.057 | F195: 7.875 | G195: 0 | H195: -30.07 | I195: 1.442 | J195: 108.481 | K195: 64.812
A196: 2019/02/08 23:00:00 | B196: 0.196 | C196: 9.105 | D196: 9.299 | E196: 23.313 | F196: 8.153 | G196: 0 | H196: -30.075 | I196: 1.17 | J196: 90.378 | K196: 62.116
A197: 2019/02/09 00:00:00 | B197: 0.189 | C197: 8.081 | D197: 8.268 | E197: 23.543 | F197: 10.084 | G197: 0 | H197: -30.137 | I197: 0.898 | J197: 78.261 | K197: 62.063
A198: 2019/02/09 01:00:00 | B198: 0.491 | C198: 7.491 | D198: 7.981 | E198: 23.861 | F198: 8.7 | G198: 0 | H198: -29.589 | I198: 0.725 | J198: 49.043 | K198: 61.245
A199: 2019/02/09 02:00:00 | B199: 0.604 | C199: 6.785 | D199: 7.386 | E199: 24.159 | F199: 6.124 | G199: 0 | H199: -29.298 | I199: 0.742 | J199: 57.046 | K199: 60.319
A200: 2019/02/09 03:00:00 | B200: 0.641 | C200: 6.287 | D200: 6.926 | E200: 24.363 | F200: 6.302 | G200: 0 | H200: -29.394 | I200: 0.741 | J200: 32.294 | K200: 60.647
A201: 2019/02/09 04:00:00 | B201: 1.387 | C201: 6.437 | D201: 7.821 | E201: 24.89 | F201: 6.578 | G201: 0 | H201: -29.79 | I201: 1.014 | J201: 66.093 | K201: 62.343
... 483 more rows

Sheet Kerrobert
A1: Group: Global WYAMZ - Monthly Monthly: 02/2019 Type: AVG 1 Hr.
A3: Date & Time | B3: Kerrobert | C3: Kerrobert | D3: Kerrobert | E3: Kerrobert | F3: Kerrobert | G3: Kerrobert | H3: Kerrobert | I3: Kerrobert
B4: SO2 | C4: H2S | D4: PM25 | E4: PRECIP | F4: TEMPERAT | G4: RH | H4: WS | I4: WD
B5: ppb | C5: ppb | D5: ug/m3(L) | E5: mm | F5: C° | G5: %RH | H5: m/s | I5: Deg
A6: 2019/02/01 01:00:00 | B6: 0.839 | C6: 0.149 | D6: 23.603 | E6: 0 | F6: -7.77 | G6: 81.439 | H6: 3.893 | I6: 22.375
A7: 2019/02/01 02:00:00 | B7: 0.236 | C7: 0.019 | D7: 17.643 | E7: 0 | F7: -8.785 | G7: 80.456 | H7: 4.628 | I7: 29.845
A8: 2019/02/01 03:00:00 | B8: 0.096 | C8: 0.019 | D8: 9.442 | E8: 0 | F8: -10.498 | G8: 78.88 | H8: 5.261 | I8: 27.28
A9: 2019/02/01 04:00:00 | B9: 0.16 | C9: 0.003 | D9: 7.301 | E9: 0 | F9: -12.275 | G9: 77.612 | H9: 5.31 | I9: 29.313
A10: 2019/02/01 05:00:00 | B10: Z | C10: Z | D10: 5.863 | E10: 0 | F10: -13.367 | G10: 76.201 | H10: 4.885 | I10: 26.321
A11: 2019/02/01 06:00:00 | B11: 0.107 | C11: 0.253 | D11: 3.594 | E11: 0 | F11: -14.921 | G11: 75.418 | H11: 5.489 | I11: 28.242
A12: 2019/02/01 07:00:00 | B12: 0.078 | C12: 0.237 | D12: 2.785 | E12: 0 | F12: -15.965 | G12: 74.608 | H12: 5.443 | I12: 33.108
A13: 2019/02/01 08:00:00 | B13: 0.132 | C13: 0.164 | D13: 2.598 | E13: 0 | F13: -16.501 | G13: 72.409 | H13: 4.816 | I13: 32.382
A14: 2019/02/01 09:00:00 | B14: 0.164 | C14: 0.117 | D14: 2.008 | E14: 0 | F14: -17.29 | G14: 70.89 | H14: 4.284 | I14: 26.284
A15: 2019/02/01 10:00:00 | B15: 0.177 | C15: 0.975 | D15: 2.305 | E15: 0 | F15: -18.314 | G15: 71.257 | H15: 4.451 | I15: 29.715
A16: 2019/02/01 11:00:00 | B16: 0.116 | C16: -0.034 | D16: 2.211 | E16: 0 | F16: -18.853 | G16: 72.408 | H16: 4.187 | I16: 25.198
A17: 2019/02/01 12:00:00 | B17: 0.131 | C17: -0.039 | D17: 1.752 | E17: 0 | F17: -19.011 | G17: 70.963 | H17: 4.245 | I17: 29.572
A18: 2019/02/01 13:00:00 | B18: 0.155 | C18: -0.044 | D18: 1.62 | E18: 0 | F18: -19.062 | G18: 69.868 | H18: 4.356 | I18: 34.653
A19: 2019/02/01 14:00:00 | B19: 0.131 | C19: -0.04 | D19: 1.57 | E19: 0 | F19: -18.939 | G19: 69.021 | H19: 4.024 | I19: 44.381
A20: 2019/02/01 15:00:00 | B20: 0.104 | C20: -0.086 | D20: 1.544 | E20: 0 | F20: -18.845 | G20: 68.229 | H20: 3.739 | I20: 39.398
A21: 2019/02/01 16:00:00 | B21: 0.099 | C21: -0.086 | D21: 1.586 | E21: 0 | F21: -18.962 | G21: 68.705 | H21: 3.981 | I21: 41.37
A22: 2019/02/01 17:00:00 | B22: 0.153 | C22: -0.015 | D22: 1.654 | E22: 0 | F22: -19.02 | G22: 68.541 | H22: 4.22 | I22: 60.809
A23: 2019/02/01 18:00:00 | B23: 0.159 | C23: -0.058 | D23: 1.962 | E23: 0 | F23: -19.249 | G23: 68.79 | H23: 5.071 | I23: 67.77
A24: 2019/02/01 19:00:00 | B24: 0.134 | C24: -0.003 | D24: 2.814 | E24: 0 | F24: -19.455 | G24: 72.74 | H24: 4.475 | I24: 71.13
A25: 2019/02/01 20:00:00 | B25: 0.221 | C25: -0.096 | D25: 2.107 | E25: 0 | F25: -19.666 | G25: 71.37 | H25: 4.887 | I25: 85.709
A26: 2019/02/01 21:00:00 | B26: 0.247 | C26: -0.005 | D26: 2.129 | E26: 0 | F26: -20.106 | G26: 71.327 | H26: 4.98 | I26: 79.702
A27: 2019/02/01 22:00:00 | B27: 0.167 | C27: -0.027 | D27: 2.072 | E27: 0 | F27: -20.293 | G27: 69.351 | H27: 6.07 | I27: 84.841
A28: 2019/02/01 23:00:00 | B28: 0.065 | C28: -0.054 | D28: 1.924 | E28: 0 | F28: -20.386 | G28: 68.139 | H28: 6.675 | I28: 92.808
A29: 2019/02/02 00:00:00 | B29: 0.087 | C29: -0.053 | D29: 5.22 | E29: 0 | F29: -20.772 | G29: 68.486 | H29: 7.007 | I29: 94.772
A30: 2019/02/02 01:00:00 | B30: 0.12 | C30: -0.01 | D30: 3.223 | E30: 0 | F30: -21.009 | G30: 70.386 | H30: 6.513 | I30: 93.195
A31: 2019/02/02 02:00:00 | B31: 0.124 | C31: -0.078 | D31: 3.318 | E31: 0 | F31: -20.996 | G31: 70.702 | H31: 6.27 | I31: 94.555
A32: 2019/02/02 03:00:00 | B32: 0.121 | C32: -0.027 | D32: 3.294 | E32: 0 | F32: -20.979 | G32: 71.34 | H32: 6.39 | I32: 99.631
A33: 2019/02/02 04:00:00 | B33: Z | C33: Z | D33: 3.28 | E33: 0 | F33: -21.057 | G33: 72.021 | H33: 6.532 | I33: 99.643
A34: 2019/02/02 05:00:00 | B34: 0.119 | C34: -0.007 | D34: 3.895 | E34: 0 | F34: -20.816 | G34: 73.095 | H34: 6.226 | I34: 94.162
A35: 2019/02/02 06:00:00 | B35: 0.05 | C35: 0.013 | D35: 3.97 | E35: 0 | F35: -20.484 | G35: 72.75 | H35: 6.037 | I35: 88.559
A36: 2019/02/02 07:00:00 | B36: 0.129 | C36: -0.018 | D36: 2.445 | E36: 0 | F36: -20.407 | G36: 71.688 | H36: 5.37 | I36: 77.355
A37: 2019/02/02 08:00:00 | B37: 0.172 | C37: -0.08 | D37: 1.897 | E37: 0 | F37: -20.394 | G37: 71.669 | H37: 5.661 | I37: 68.485
A38: 2019/02/02 09:00:00 | B38: 0.041 | C38: -0.076 | D38: 1.595 | E38: 0 | F38: -20.959 | G38: 72.295 | H38: 5.861 | I38: 63.96
A39: 2019/02/02 10:00:00 | B39: 0.09 | C39: -0.043 | D39: 1.747 | E39: 0.03 | F39: -21.872 | G39: 71.731 | H39: 6.272 | I39: 65.141
A40: 2019/02/02 11:00:00 | B40: 0.055 | C40: 0.006 | D40: 1.756 | E40: 0 | F40: -22.034 | G40: 70.737 | H40: 5.543 | I40: 62.345
A41: 2019/02/02 12:00:00 | B41: 0.072 | C41: -0.049 | D41: 1.573 | E41: 0 | F41: -21.729 | G41: 68.707 | H41: 4.297 | I41: 42.262
A42: 2019/02/02 13:00:00 | B42: 0.08 | C42: 0.003 | D42: 1.53 | E42: 0 | F42: -21.956 | G42: 68.048 | H42: 3.844 | I42: 32.079
A43: 2019/02/02 14:00:00 | B43: 0.1 | C43: 0.012 | D43: 1.457 | E43: 0 | F43: -22.109 | G43: 65.481 | H43: 4.016 | I43: 33.258
A44: 2019/02/02 15:00:00 | B44: 0.057 | C44: 0.026 | D44: 1.458 | E44: 0 | F44: -22.075 | G44: 65.517 | H44: 2.783 | I44: 14.141
A45: 2019/02/02 16:00:00 | B45: 0.068 | C45: 0.023 | D45: 1.413 | E45: 0 | F45: -22.59 | G45: 68.119 | H45: 2.943 | I45: 11.747
A46: 2019/02/02 17:00:00 | B46: 0.061 | C46: 0.121 | D46: 1.401 | E46: 0 | F46: -22.506 | G46: 66.247 | H46: 2.735 | I46: 14.859
A47: 2019/02/02 18:00:00 | B47: 0.019 | C47: 0.089 | D47: 1.527 | E47: 0 | F47: -22.766 | G47: 65.933 | H47: 2.107 | I47: 357.069
A48: 2019/02/02 19:00:00 | B48: 0.053 | C48: 0.059 | D48: 1.734 | E48: 0 | F48: -22.843 | G48: 65.961 | H48: 1.834 | I48: 353.474
A49: 2019/02/02 20:00:00 | B49: 0.142 | C49: -0.018 | D49: 1.964 | E49: 0 | F49: -22.612 | G49: 66.19 | H49: 1.607 | I49: 341.247
A50: 2019/02/02 21:00:00 | B50: 0.202 | C50: 0.105 | D50: 2.078 | E50: 0 | F50: -22.594 | G50: 64.995 | H50: 1.981 | I50: 340.332
A51: 2019/02/02 22:00:00 | B51: 0.13 | C51: 0.069 | D51: 2.38 | E51: 0 | F51: -22.976 | G51: 65.871 | H51: 2.329 | I51: 340.773
A52: 2019/02/02 23:00:00 | B52: 0.211 | C52: 0.05 | D52: 2.102 | E52: 0 | F52: -23.441 | G52: 64.945 | H52: 2.544 | I52: 341.962
A53: 2019/02/03 00:00:00 | B53: 0.15 | C53: 0.055 | D53: 2.015 | E53: 0 | F53: -23.778 | G53: 63.761 | H53: 2.001 | I53: 341.318
A54: 2019/02/03 01:00:00 | B54: 0.204 | C54: 0.091 | D54: 2.611 | E54: 0 | F54: -23.812 | G54: 63.882 | H54: 1.533 | I54: 342.088
A55: 2019/02/03 02:00:00 | B55: 0.324 | C55: 0.126 | D55: 2.678 | E55: 0 | F55: -23.595 | G55: 62.784 | H55: 1.919 | I55: 345.797
A56: 2019/02/03 03:00:00 | B56: Z | C56: Z | D56: 2.741 | E56: 0 | F56: -23.538 | G56: 63.132 | H56: 1.993 | I56: 344.005
A57: 2019/02/03 04:00:00 | B57: 0.186 | C57: 0.174 | D57: 2.536 | E57: 0 | F57: -23.648 | G57: 63.29 | H57: 1.905 | I57: 345.271
A58: 2019/02/03 05:00:00 | B58: 0.272 | C58: 0.097 | D58: 2.304 | E58: 0 | F58: -24.063 | G58: 64.404 | H58: 2.102 | I58: 351.76
A59: 2019/02/03 06:00:00 | B59: 0.486 | C59: 0.063 | D59: 2.242 | E59: 0 | F59: -24.476 | G59: 63.846 | H59: 1.872 | I59: 355.513
A60: 2019/02/03 07:00:00 | B60: 0.299 | C60: 0.141 | D60: 2.188 | E60: 0 | F60: -24.716 | G60: 64.074 | H60: 1.697 | I60: 346.593
A61: 2019/02/03 08:00:00 | B61: 0.244 | C61: 0.109 | D61: 2.286 | E61: 0 | F61: -24.954 | G61: 64.134 | H61: 1.576 | I61: 358.198
A62: 2019/02/03 09:00:00 | B62: 0.236 | C62: 0.08 | D62: 2.134 | E62: 0 | F62: -25.226 | G62: 64.61 | H62: 1.792 | I62: 355.866
A63: 2019/02/03 10:00:00 | B63: 0.302 | C63: 0.103 | D63: 2.525 | E63: 0 | F63: -25.338 | G63: 64.732 | H63: 1.666 | I63: 1.91
A64: 2019/02/03 11:00:00 | B64: 0.37 | C64: 0.098 | D64: 2.216 | E64: 0 | F64: -25.419 | G64: 63.971 | H64: 1.731 | I64: 2.406
A65: 2019/02/03 12:00:00 | B65: 0.413 | C65: 0.098 | D65: 1.896 | E65: 0 | F65: -25.373 | G65: 63.788 | H65: 1.936 | I65: 17.081
A66: 2019/02/03 13:00:00 | B66: 0.16 | C66: 0.032 | D66: 1.75 | E66: 0 | F66: -25.577 | G66: 61.93 | H66: 2.462 | I66: 22.771
A67: 2019/02/03 14:00:00 | B67: 0.162 | C67: 0.117 | D67: 1.807 | E67: 0 | F67: -25.495 | G67: 61.929 | H67: 2.448 | I67: 18.158
A68: 2019/02/03 15:00:00 | B68: 0.223 | C68: 0.028 | D68: 1.936 | E68: 0 | F68: -25.74 | G68: 62.688 | H68: 2.95 | I68: 28.377
A69: 2019/02/03 16:00:00 | B69: 0.311 | C69: 0.05 | D69: 1.831 | E69: 0 | F69: -25.924 | G69: 63.526 | H69: 3.341 | I69: 36.5
A70: 2019/02/03 17:00:00 | B70: 0.202 | C70: 0.075 | D70: 1.991 | E70: 0 | F70: -26.048 | G70: 64.212 | H70: 3.139 | I70: 37.323
A71: 2019/02/03 18:00:00 | B71: 0.248 | C71: 0.048 | D71: 2.098 | E71: 0 | F71: -26.151 | G71: 65.193 | H71: 3.041 | I71: 35.16
A72: 2019/02/03 19:00:00 | B72: 0.27 | C72: 0.015 | D72: 2.267 | E72: 0 | F72: -26.273 | G72: 66.163 | H72: 2.94 | I72: 42.242
A73: 2019/02/03 20:00:00 | B73: 0.285 | C73: 0.075 | D73: 2.445 | E73: 0 | F73: -26.265 | G73: 66.41 | H73: 2.734 | I73: 38.13
A74: 2019/02/03 21:00:00 | B74: 0.371 | C74: 0.033 | D74: 2.374 | E74: 0 | F74: -26.182 | G74: 66.416 | H74: 2.485 | I74: 36.38
A75: 2019/02/03 22:00:00 | B75: 0.607 | C75: 0.028 | D75: 2.206 | E75: 0 | F75: -26.029 | G75: 66.553 | H75: 2.43 | I75: 39.835
A76: 2019/02/03 23:00:00 | B76: 0.526 | C76: 0.041 | D76: 2.158 | E76: 0 | F76: -25.842 | G76: 66.876 | H76: 2.42 | I76: 41.672
A77: 2019/02/04 00:00:00 | B77: 0.26 | C77: 0 | D77: 2.182 | E77: 0 | F77: -25.796 | G77: 67.838 | H77: 2.066 | I77: 40.925
A78: 2019/02/04 01:00:00 | B78: 0.341 | C78: 0.05 | D78: 2.671 | E78: 0 | F78: -25.644 | G78: 68.331 | H78: 2.037 | I78: 42.294
A79: 2019/02/04 02:00:00 | B79: Z | C79: Z | D79: 2.599 | E79: 0 | F79: -25.461 | G79: 68.778 | H79: 1.417 | I79: 33.532
A80: 2019/02/04 03:00:00 | B80: 0.127 | C80: 0.079 | D80: 2.204 | E80: 0 | F80: -25.129 | G80: 68.095 | H80: 1.893 | I80: 43.991
A81: 2019/02/04 04:00:00 | B81: 0.068 | C81: 0.07 | D81: 1.929 | E81: 0 | F81: -25.077 | G81: 67.523 | H81: 2.557 | I81: 55.143
A82: 2019/02/04 05:00:00 | B82: 0.043 | C82: 0.043 | D82: 1.932 | E82: 0 | F82: -24.967 | G82: 66.967 | H82: 1.754 | I82: 54.049
A83: 2019/02/04 06:00:00 | B83: 0.048 | C83: 0.006 | D83: 1.832 | E83: 0 | F83: -24.873 | G83: 65.534 | H83: 1.556 | I83: 71.317
A84: 2019/02/04 07:00:00 | B84: 0.286 | C84: 0.005 | D84: 1.741 | E84: 0 | F84: -24.815 | G84: 64.106 | H84: 2.394 | I84: 78.431
A85: 2019/02/04 08:00:00 | B85: 0.22 | C85: 0.013 | D85: 1.767 | E85: 0 | F85: -24.887 | G85: 67.077 | H85: 3.04 | I85: 84.491
A86: 2019/02/04 09:00:00 | B86: 0.257 | C86: 0.071 | D86: 3.125 | E86: 0 | F86: -24.768 | G86: 66.647 | H86: 2.907 | I86: 91.751
A87: 2019/02/04 10:00:00 | B87: 0.119 | C87: 0.006 | D87: 2.063 | E87: 0 | F87: -24.669 | G87: 64.917 | H87: 2.665 | I87: 98.305
A88: 2019/02/04 11:00:00 | B88: 0.074 | C88: 0.033 | D88: 1.884 | E88: 0 | F88: -24.562 | G88: 65.292 | H88: 2.488 | I88: 113.293
A89: 2019/02/04 12:00:00 | B89: 0.073 | C89: 0.003 | D89: 1.816 | E89: 0 | F89: -24.461 | G89: 64.046 | H89: 2.5 | I89: 124.132
A90: 2019/02/04 13:00:00 | B90: 0.086 | C90: 0 | D90: 1.821 | E90: 0 | F90: -24.41 | G90: 63.548 | H90: 2.717 | I90: 122.272
A91: 2019/02/04 14:00:00 | B91: 0.069 | C91: -0.002 | D91: 1.791 | E91: 0 | F91: -24.35 | G91: 63.479 | H91: 2.454 | I91: 142.419
A92: 2019/02/04 15:00:00 | B92: 0.185 | C92: 0.091 | D92: 1.736 | E92: 0 | F92: -24.232 | G92: 63.42 | H92: 2.402 | I92: 144.86
A93: 2019/02/04 16:00:00 | B93: 0.023 | C93: 0.093 | D93: 1.574 | E93: 0 | F93: -24.09 | G93: 63.472 | H93: 2.504 | I93: 143.649
A94: 2019/02/04 17:00:00 | B94: 0.014 | C94: -0.102 | D94: 1.737 | E94: 0 | F94: -24.355 | G94: 65.509 | H94: 2.555 | I94: 107.5
A95: 2019/02/04 18:00:00 | B95: 0.054 | C95: -0.028 | D95: 2.086 | E95: 0 | F95: -24.564 | G95: 67.319 | H95: 2.672 | I95: 96.767
A96: 2019/02/04 19:00:00 | B96: 0.017 | C96: -0.01 | D96: 2.096 | E96: 0 | F96: -24.715 | G96: 67.924 | H96: 2.376 | I96: 103.393
A97: 2019/02/04 20:00:00 | B97: 0.037 | C97: 0.053 | D97: 1.974 | E97: 0 | F97: -24.841 | G97: 68.685 | H97: 2.531 | I97: 109.437
A98: 2019/02/04 21:00:00 | B98: 0.026 | C98: 0.034 | D98: 2.269 | E98: 0 | F98: -24.961 | G98: 69.061 | H98: 2.487 | I98: 109.213
A99: 2019/02/04 22:00:00 | B99: 0.021 | C99: -0.064 | D99: 2.597 | E99: 0 | F99: -25.547 | G99: 70.218 | H99: 1.758 | I99: 115.679
A100: 2019/02/04 23:00:00 | B100: 0.02 | C100: 0.048 | D100: 2.537 | E100: 0 | F100: -25.75 | G100: 70.35 | H100: 2.014 | I100: 139.592
A101: 2019/02/05 00:00:00 | B101: 0.034 | C101: -0.021 | D101: 1.791 | E101: 0 | F101: -25.874 | G101: 70.948 | H101: 1.512 | I101: 138.934
A102: 2019/02/05 01:00:00 | B102: Z | C102: Z | D102: 1.796 | E102: 0 | F102: -26.084 | G102: 70.066 | H102: 0.893 | I102: 164.751
A103: 2019/02/05 02:00:00 | B103: 0.046 | C103: 0.072 | D103: 1.787 | E103: 0 | F103: -26.099 | G103: 70.118 | H103: 0.794 | I103: 134.889
A104: 2019/02/05 03:00:00 | B104: 0.035 | C104: 0.027 | D104: 1.801 | E104: 0 | F104: -26.216 | G104: 70.4 | H104: 0.885 | I104: 135.378
A105: 2019/02/05 04:00:00 | B105: 0.036 | C105: -0.031 | D105: 1.763 | E105: 0 | F105: -26.085 | G105: 70.147 | H105: 1.306 | I105: 175.878
A106: 2019/02/05 05:00:00 | B106: -0.017 | C106: 0.014 | D106: 1.674 | E106: 0 | F106: -25.639 | G106: 69.725 | H106: 1.073 | I106: 193.901
A107: 2019/02/05 06:00:00 | B107: -0.018 | C107: -0.017 | D107: 1.721 | E107: 0 | F107: -25.613 | G107: 68.55 | H107: 0.913 | I107: 198.931
A108: 2019/02/05 07:00:00 | B108: 0.001 | C108: 0.109 | D108: 2.091 | E108: 0 | F108: -26.58 | G108: 68.79 | H108: 0.327 | I108: 169.976
A109: 2019/02/05 08:00:00 | B109: 0.003 | C109: 0.049 | D109: 2.165 | E109: 0 | F109: -27.868 | G109: 66.64 | H109: 0.306 | I109: 242.377
A110: 2019/02/05 09:00:00 | B110: 0 | C110: 0.044 | D110: 2.442 | E110: 0 | F110: -30.433 | G110: 69.191 | H110: 0.767 | I110: 307.823
A111: 2019/02/05 10:00:00 | B111: -0.024 | C111: 0.083 | D111: 2.464 | E111: 0 | F111: -27.921 | G111: 68.581 | H111: 0.517 | I111: 285.107
A112: 2019/02/05 11:00:00 | B112: 0.008 | C112: 0.096 | D112: 2.387 | E112: 0 | F112: -30.336 | G112: 66.811 | H112: 0.628 | I112: 242.423
A113: 2019/02/05 12:00:00 | B113: 0.072 | C113: 0.097 | D113: 1.754 | E113: 0 | F113: -25.788 | G113: 68.314 | H113: 0.725 | I113: 2.041
A114: 2019/02/05 13:00:00 | B114: 0.079 | C114: 0.071 | D114: 1.719 | E114: 0 | F114: -26.066 | G114: 69.482 | H114: 1.351 | I114: 40.188
A115: 2019/02/05 14:00:00 | B115: 0.063 | C115: 0.078 | D115: 1.616 | E115: 0 | F115: -26.202 | G115: 69.588 | H115: 1.719 | I115: 34.674
A116: 2019/02/05 15:00:00 | B116: 0.104 | C116: 0.099 | D116: 1.824 | E116: 0 | F116: -26.345 | G116: 69.347 | H116: 1.574 | I116: 39.238
A117: 2019/02/05 16:00:00 | B117: 0.112 | C117: 0.052 | D117: 1.875 | E117: 0 | F117: -26.098 | G117: 69.246 | H117: 1.379 | I117: 35.433
A118: 2019/02/05 17:00:00 | B118: 0.026 | C118: 0.107 | D118: 2.051 | E118: 0 | F118: -26.285 | G118: 69.104 | H118: 1.68 | I118: 26.171
A119: 2019/02/05 18:00:00 | B119: 0.006 | C119: 0.091 | D119: 3.558 | E119: 0 | F119: -27.637 | G119: 69.278 | H119: 1.737 | I119: 37.043
A120: 2019/02/05 19:00:00 | B120: -0.033 | C120: 0.15 | D120: 4.823 | E120: 0 | F120: -28.421 | G120: 69.167 | H120: 1.146 | I120: 26.221
A121: 2019/02/05 20:00:00 | B121: 0.099 | C121: 0.097 | D121: 6.652 | E121: 0 | F121: -28.76 | G121: 69.586 | H121: 1.988 | I121: 17.532
A122: 2019/02/05 21:00:00 | B122: 0.086 | C122: 0.163 | D122: 5.797 | E122: 0 | F122: -28.659 | G122: 69.261 | H122: 1.564 | I122: 30.626
A123: 2019/02/05 22:00:00 | B123: 0.279 | C123: 0.172 | D123: 6.179 | E123: 0 | F123: -29.269 | G123: 68.409 | H123: 1.107 | I123: 24.224
A124: 2019/02/05 23:00:00 | B124: 0.537 | C124: 0.138 | D124: 5.636 | E124: 0 | F124: -30.004 | G124: 68.466 | H124: 1.001 | I124: 23.449
A125: 2019/02/06 00:00:00 | B125: Z | C125: Z | D125: 5.685 | E125: 0 | F125: -30.053 | G125: 67.661 | H125: 1.107 | I125: 358.787
A126: 2019/02/06 01:00:00 | B126: 0.382 | C126: 0.189 | D126: 7.072 | E126: 0 | F126: -32.303 | G126: 67.129 | H126: 1.606 | I126: 324.496
A127: 2019/02/06 02:00:00 | B127: 0.324 | C127: 0.098 | D127: 6.473 | E127: 0 | F127: -32.191 | G127: 67.709 | H127: 1.729 | I127: 316.594
A128: 2019/02/06 03:00:00 | B128: 0.336 | C128: 0.132 | D128: 6.243 | E128: 0 | F128: -32.677 | G128: 67.172 | H128: 1.649 | I128: 327.379
A129: 2019/02/06 04:00:00 | B129: 0.56 | C129: 0.054 | D129: 5.411 | E129: 0 | F129: -31.604 | G129: 67.413 | H129: 1.186 | I129: 334.587
A130: 2019/02/06 05:00:00 | B130: 0.877 | C130: 0.09 | D130: 4.561 | E130: 0 | F130: -32.479 | G130: 66.704 | H130: 1.46 | I130: 333.141
A131: 2019/02/06 06:00:00 | B131: 1.189 | C131: 0.019 | D131: 4.284 | E131: 0 | F131: -32.966 | G131: 66.093 | H131: 1.633 | I131: 332.637
A132: 2019/02/06 07:00:00 | B132: 1.165 | C132: 0.129 | D132: 5.22 | E132: 0 | F132: -33.134 | G132: 66.211 | H132: 1.51 | I132: 330.212
A133: 2019/02/06 08:00:00 | B133: 1.27 | C133: 0.051 | D133: 4.852 | E133: 0 | F133: -34.04 | G133: 66.145 | H133: 1.542 | I133: 321.991
A134: 2019/02/06 09:00:00 | B134: 1.409 | C134: 0.092 | D134: 5.083 | E134: 0 | F134: -33.094 | G134: 66.734 | H134: 1.813 | I134: 332.059
A135: 2019/02/06 10:00:00 | B135: 1.56 | C135: 0.04 | D135: 4.329 | E135: 0 | F135: -31.804 | G135: 67.118 | H135: 1.209 | I135: 332.343
A136: 2019/02/06 11:00:00 | B136: 1.662 | C136: 0.076 | D136: 2.556 | E136: 0 | F136: -30.06 | G136: 67.016 | H136: 0.796 | I136: 335.143
A137: 2019/02/06 12:00:00 | B137: 1.497 | C137: 0.035 | D137: 1.989 | E137: 0 | F137: -27.732 | G137: 67.76 | H137: 0.433 | I137: 313.471
A138: 2019/02/06 13:00:00 | B138: 1.586 | C138: 0.05 | D138: 1.944 | E138: 0 | F138: -25.724 | G138: 67.656 | H138: 0.36 | I138: 311.215
A139: 2019/02/06 14:00:00 | B139: 1.418 | C139: 0.083 | D139: 1.707 | E139: 0 | F139: -27.27 | G139: 66.463 | H139: 1.068 | I139: 109.349
A140: 2019/02/06 15:00:00 | B140: 1.501 | C140: 0.08 | D140: 1.659 | E140: 0 | F140: -27.222 | G140: 67.535 | H140: 1.083 | I140: 66.524
A141: 2019/02/06 16:00:00 | B141: 1.65 | C141: 0.07 | D141: 1.666 | E141: 0 | F141: -26.748 | G141: 67.304 | H141: 1.1 | I141: 59.941
A142: 2019/02/06 17:00:00 | B142: 1.743 | C142: -0.026 | D142: 1.951 | E142: 0 | F142: -26.848 | G142: 67.015 | H142: 0.858 | I142: 50.668
A143: 2019/02/06 18:00:00 | B143: 1.745 | C143: 0.069 | D143: 2.934 | E143: 0 | F143: -27.629 | G143: 66.942 | H143: 1.206 | I143: 66.23
A144: 2019/02/06 19:00:00 | B144: 1.009 | C144: 0.034 | D144: 4.892 | E144: 0 | F144: -28.757 | G144: 67.339 | H144: 1.159 | I144: 75.324
A145: 2019/02/06 20:00:00 | B145: 0.682 | C145: 0.037 | D145: 6.855 | E145: 0 | F145: -29.756 | G145: 66.387 | H145: 0.603 | I145: 191.612
A146: 2019/02/06 21:00:00 | B146: 0.663 | C146: -0.001 | D146: 7.723 | E146: 0 | F146: -31.473 | G146: 66.489 | H146: 0.821 | I146: 306.452
A147: 2019/02/06 22:00:00 | B147: 0.769 | C147: -0.023 | D147: 7.801 | E147: 0 | F147: -31.382 | G147: 66.476 | H147: 0.766 | I147: 310.875
A148: 2019/02/06 23:00:00 | B148: Z | C148: Z | D148: 7.721 | E148: 0 | F148: -31.331 | G148: 67.246 | H148: 0.707 | I148: 307.223
A149: 2019/02/07 00:00:00 | B149: 0.661 | C149: 0.087 | D149: 7.063 | E149: 0 | F149: -32.86 | G149: 65.094 | H149: 1.066 | I149: 292.212
A150: 2019/02/07 01:00:00 | B150: 0.746 | C150: -0.006 | D150: 6.51 | E150: 0 | F150: -31.807 | G150: 67.471 | H150: 1.132 | I150: 308.858
A151: 2019/02/07 02:00:00 | B151: 0.591 | C151: 0.015 | D151: 6.168 | E151: 0 | F151: -31.66 | G151: 67.171 | H151: 1.233 | I151: 304.763
A152: 2019/02/07 03:00:00 | B152: 0.372 | C152: -0.034 | D152: 5.397 | E152: 0 | F152: -32.476 | G152: 65.994 | H152: 1.066 | I152: 312.283
A153: 2019/02/07 04:00:00 | B153: 0.311 | C153: 0.002 | D153: 5.788 | E153: 0 | F153: -33.316 | G153: 66.312 | H153: 1.037 | I153: 292.97
A154: 2019/02/07 05:00:00 | B154: 0.405 | C154: 0.065 | D154: 5.39 | E154: 0 | F154: -33.148 | G154: 65.911 | H154: 1.111 | I154: 299.062
A155: 2019/02/07 06:00:00 | B155: 0.351 | C155: 0.139 | D155: 5.492 | E155: 0 | F155: -35.167 | G155: 64.491 | H155: 1.169 | I155: 255.488
A156: 2019/02/07 07:00:00 | B156: 0.391 | C156: 0.171 | D156: 7.165 | E156: 0 | F156: -35.093 | G156: 65.394 | H156: 1.372 | I156: 248.346
A157: 2019/02/07 08:00:00 | B157: 0.403 | C157: 0.21 | D157: 8.997 | E157: 0 | F157: -35.688 | G157: 65.214 | H157: 1.341 | I157: 240.97
A158: 2019/02/07 09:00:00 | B158: 0.421 | C158: 0.296 | D158: 10.829 | E158: 0 | F158: -35.985 | G158: 64.414 | H158: 1.071 | I158: 251.673
A159: 2019/02/07 10:00:00 | B159: 0.485 | C159: 0.235 | D159: 9.09 | E159: 0 | F159: -35.465 | G159: 65.47 | H159: 0.121 | I159: 243.056
A160: 2019/02/07 11:00:00 | B160: 0.607 | C160: 0.281 | D160: 5.229 | E160: 0 | F160: -33.229 | G160: 64.526 | H160: 0.768 | I160: 227.686
A161: 2019/02/07 12:00:00 | B161: 0.802 | C161: 0.163 | D161: 3.023 | E161: 0 | F161: -30.757 | G161: 66.642 | H161: 1.64 | I161: 188.385
A162: 2019/02/07 13:00:00 | B162: 0.251 | C162: 0.103 | D162: 3.063 | E162: 0 | F162: -29.25 | G162: 67.86 | H162: 2.193 | I162: 192.691
A163: 2019/02/07 14:00:00 | B163: 0.332 | C163: 0.097 | D163: 3.079 | E163: 0 | F163: -28.474 | G163: 67.819 | H163: 2.313 | I163: 195.109
A164: 2019/02/07 15:00:00 | B164: 0.41 | C164: 0.23 | D164: 2.716 | E164: 0 | F164: -27.148 | G164: 66.893 | H164: 0.972 | I164: 170.769
A165: 2019/02/07 16:00:00 | B165: 0.348 | C165: 0.144 | D165: 2.441 | E165: 0 | F165: -27.598 | G165: 65.364 | H165: 1.315 | I165: 130.604
A166: 2019/02/07 17:00:00 | B166: 0.227 | C166: 0.066 | D166: 2.841 | E166: 0 | F166: -28.324 | G166: 65.629 | H166: 1.626 | I166: 129.075
A167: 2019/02/07 18:00:00 | B167: 0.315 | C167: 0.141 | D167: 8.183 | E167: 0 | F167: -29.069 | G167: 66.574 | H167: 1.687 | I167: 135.761
A168: 2019/02/07 19:00:00 | B168: 0.253 | C168: 0.052 | D168: 6.338 | E168: 0 | F168: -29.806 | G168: 69.751 | H168: 2.301 | I168: 123.338
A169: 2019/02/07 20:00:00 | B169: 0.151 | C169: 0.053 | D169: 5.199 | E169: 0 | F169: -30.245 | G169: 68.325 | H169: 1.714 | I169: 134.441
A170: 2019/02/07 21:00:00 | B170: 0.092 | C170: 0.019 | D170: 5.74 | E170: 0 | F170: -31.103 | G170: 67.682 | H170: 0.688 | I170: 168.928
A171: 2019/02/07 22:00:00 | B171: Z | C171: Z | D171: 5.143 | E171: 0 | F171: -31.45 | G171: 67.35 | H171: 0.093 | I171: 50.772
A172: 2019/02/07 23:00:00 | B172: 0.017 | C172: 0.177 | D172: 5.146 | E172: 0 | F172: -32.619 | G172: 66.575 | H172: 1.121 | I172: 209.171
A173: 2019/02/08 00:00:00 | B173: 0.036 | C173: -0.006 | D173: 4.747 | E173: 0 | F173: -31.969 | G173: 68.008 | H173: 1.897 | I173: 152.618
A174: 2019/02/08 01:00:00 | B174: 0.012 | C174: -0.084 | D174: 4.82 | E174: 0 | F174: -31.814 | G174: 67.53 | H174: 1.799 | I174: 161.459
A175: 2019/02/08 02:00:00 | B175: -0.005 | C175: -0.079 | D175: 4.85 | E175: 0 | F175: -32.481 | G175: 67.126 | H175: 0.189 | I175: 121.515
A176: 2019/02/08 03:00:00 | B176: -0.011 | C176: -0.066 | D176: 4.716 | E176: 0 | F176: -31.824 | G176: 66.52 | H176: 0.536 | I176: 320.698
A177: 2019/02/08 04:00:00 | B177: 0.027 | C177: -0.034 | D177: 4.454 | E177: 0 | F177: -31.567 | G177: 66.861 | H177: 0.339 | I177: 230.863
A178: 2019/02/08 05:00:00 | B178: 0.004 | C178: -0.01 | D178: 3.924 | E178: 0 | F178: -32.187 | G178: 66.668 | H178: 0.934 | I178: 54.886
A179: 2019/02/08 06:00:00 | B179: 0.015 | C179: 0.032 | D179: 3.814 | E179: 0 | F179: -32.278 | G179: 66.446 | H179: 0.291 | I179: 137.491
A180: 2019/02/08 07:00:00 | B180: 0.043 | C180: 0.019 | D180: 3.776 | E180: 0 | F180: -31.793 | G180: 66.248 | H180: 0.25 | I180: 299.901
A181: 2019/02/08 08:00:00 | B181: 0.047 | C181: 0.023 | D181: 3.948 | E181: 0 | F181: -31.742 | G181: 66.326 | H181: 0.895 | I181: 322.437
A182: 2019/02/08 09:00:00 | B182: 0.01 | C182: 0.009 | D182: 3.916 | E182: 0 | F182: -31.541 | G182: 66.558 | H182: 0.95 | I182: 344.923
A183: 2019/02/08 10:00:00 | B183: 0.118 | C183: 0.046 | D183: 3.562 | E183: 0 | F183: -29.614 | G183: 67.047 | H183: 0.323 | I183: 350.901
A184: 2019/02/08 11:00:00 | B184: 0.188 | C184: 0.114 | D184: 3.09 | E184: 0 | F184: -30.351 | G184: 65.971 | H184: 1.29 | I184: 88.307
A185: 2019/02/08 12:00:00 | B185: 0.208 | C185: 0.052 | D185: 2.491 | E185: 0 | F185: -28.265 | G185: 68.175 | H185: 0.888 | I185: 111.548
A186: 2019/02/08 13:00:00 | B186: 0.303 | C186: -0.008 | D186: 2.365 | E186: 0 | F186: -26.868 | G186: 68.087 | H186: 0.886 | I186: 103.057
A187: 2019/02/08 14:00:00 | B187: 0.301 | C187: 0.025 | D187: 2.562 | E187: 0 | F187: -25.865 | G187: 68.396 | H187: 1.024 | I187: 130.491
A188: 2019/02/08 15:00:00 | B188: 0.33 | C188: -0.011 | D188: 2.021 | E188: 0 | F188: -24.631 | G188: 68.012 | H188: 0.739 | I188: 113.52
A189: 2019/02/08 16:00:00 | B189: 0.321 | C189: 0.007 | D189: 2.203 | E189: 0 | F189: -25.337 | G189: 67.896 | H189: 1.466 | I189: 89.043
A190: 2019/02/08 17:00:00 | B190: 0.358 | C190: 0.077 | D190: 3.428 | E190: 0 | F190: -25.076 | G190: 68.351 | H190: 0.805 | I190: 72.036
A191: 2019/02/08 18:00:00 | B191: 0.356 | C191: 0.079 | D191: 6.718 | E191: 0 | F191: -25.189 | G191: 68.713 | H191: 1.74 | I191: 53.395
A192: 2019/02/08 19:00:00 | B192: 0.477 | C192: 0.054 | D192: 6.589 | E192: 0 | F192: -25.565 | G192: 69.197 | H192: 1.92 | I192: 57.891
A193: 2019/02/08 20:00:00 | B193: 0.373 | C193: 0.015 | D193: 8.098 | E193: 0 | F193: -25.999 | G193: 69.157 | H193: 1.432 | I193: 58.614
A194: 2019/02/08 21:00:00 | B194: Z | C194: Z | D194: 6.102 | E194: 0 | F194: -26.013 | G194: 69.212 | H194: 1.554 | I194: 71.523
A195: 2019/02/08 22:00:00 | B195: 0.441 | C195: 0.115 | D195: 5.846 | E195: 0 | F195: -26.115 | G195: 69.095 | H195: 0.877 | I195: 54.875
A196: 2019/02/08 23:00:00 | B196: 0.411 | C196: 0.097 | D196: 5.837 | E196: 0 | F196: -26.413 | G196: 68.749 | H196: 0.898 | I196: 44.798
A197: 2019/02/09 00:00:00 | B197: 0.305 | C197: 0.092 | D197: 5.825 | E197: 0 | F197: -26.214 | G197: 66.827 | H197: 0.414 | I197: 348.368
A198: 2019/02/09 01:00:00 | B198: 0.238 | C198: 0.059 | D198: 6.186 | E198: 0 | F198: -26.756 | G198: 67.099 | H198: 0.572 | I198: 26.283
A199: 2019/02/09 02:00:00 | B199: 0.25 | C199: 0.067 | D199: 6.706 | E199: 0 | F199: -27.281 | G199: 66.891 | H199: 0.676 | I199: 26.94
A200: 2019/02/09 03:00:00 | B200: 0.249 | C200: 0.051 | D200: 7.003 | E200: 0 | F200: -27.501 | G200: 67.613 | H200: 0.861 | I200: 36.946
A201: 2019/02/09 04:00:00 | B201: 0.256 | C201: 0.025 | D201: 6.691 | E201: 0 | F201: -28.614 | G201: 65.68 | H201: 0.824 | I201: 5.612
... 483 more rows

Sheet Maidstone
A1: =Kerrobert!A1 -> Group: Global WYAMZ - Monthly Monthly: 02/2019 Type: AVG 1 Hr.
A3: Date & Time | B3: Maidstone | C3: Maidstone | D3: Maidstone | E3: Maidstone | F3: Maidstone | G3: Maidstone | H3: Maidstone | I3: Maidstone | J3: Maidstone | K3: Maidstone | L3: Maidstone
B4: SO2 | C4: NO | D4: NO2 | E4: NOX | F4: H2S | G4: PM25 | H4: PRECIP | I4: TEMPERAT | J4: RH | K4: WS | L4: WD
B5: ppb | C5: ppb | D5: ppb | E5: ppb | F5: ppb | G5: ug/m3(L) | H5: mm | I5: C° | J5: %RH | K5: m/s | L5: Deg
A6: 2019/02/01 01:00:00 | B6: 0.338 | C6: 0.079 | D6: 1.615 | E6: 1.692 | F6: 0.023 | G6: 4.277 | H6: 0 | I6: -13.941 | J6: 72.134 | K6: 4.158 | L6: 19.58
A7: 2019/02/01 02:00:00 | B7: 0.2 | C7: 0.082 | D7: 1.448 | E7: 1.529 | F7: -0.07 | G7: 3.691 | H7: 0 | I7: -15.429 | J7: 70.607 | K7: 4.482 | L7: 19.225
A8: 2019/02/01 03:00:00 | B8: 0.07 | C8: 0.127 | D8: 1.146 | E8: 1.271 | F8: -0.134 | G8: 2.684 | H8: 0 | I8: -16.139 | J8: 69.993 | K8: 5.023 | L8: 19.652
A9: 2019/02/01 04:00:00 | B9: 0.026 | C9: 0.108 | D9: 0.995 | E9: 1.101 | F9: -0.129 | G9: 2.798 | H9: 0 | I9: -16.84 | J9: 69.75 | K9: 5.282 | L9: 17.832
A10: 2019/02/01 05:00:00 | B10: Z | C10: Z | D10: Z | E10: Z | F10: Z | G10: 2.269 | H10: 0 | I10: -17.622 | J10: 70.085 | K10: 4.638 | L10: 17.667
A11: 2019/02/01 06:00:00 | B11: 0.107 | C11: 0.032 | D11: 0.666 | E11: 0.696 | F11: 0.25 | G11: 2.566 | H11: 0 | I11: -18.607 | J11: 70.197 | K11: 4.326 | L11: 19.079
A12: 2019/02/01 07:00:00 | B12: 0.04 | C12: 0.096 | D12: 0.666 | E12: 0.76 | F12: -0.103 | G12: 1.639 | H12: 0 | I12: -19.145 | J12: 69.412 | K12: 3.744 | L12: 13.151
A13: 2019/02/01 08:00:00 | B13: 0.024 | C13: 0.086 | D13: 0.568 | E13: 0.654 | F13: -0.042 | G13: 1.047 | H13: 0 | I13: -19.724 | J13: 65.634 | K13: 5.531 | L13: 22.397
A14: 2019/02/01 09:00:00 | B14: -0.051 | C14: 0.119 | D14: 0.624 | E14: 0.741 | F14: -0.059 | G14: 0.819 | H14: 0 | I14: -19.984 | J14: 66.308 | K14: 5.135 | L14: 26.292
A15: 2019/02/01 10:00:00 | B15: 0.023 | C15: 0.193 | D15: 0.72 | E15: 0.911 | F15: -0.089 | G15: 0.871 | H15: 0 | I15: -20.189 | J15: 69.003 | K15: 3.977 | L15: 26.021
A16: 2019/02/01 11:00:00 | B16: -0.038 | C16: 0.181 | D16: 0.618 | E16: 0.798 | F16: -0.065 | G16: 1.397 | H16: 0 | I16: -20.097 | J16: 67.479 | K16: 3.703 | L16: 25.691
A17: 2019/02/01 12:00:00 | B17: -0.034 | C17: 0.158 | D17: 0.448 | E17: 0.606 | F17: -0.066 | G17: 1.707 | H17: 0 | I17: -20.204 | J17: 66.852 | K17: 3.857 | L17: 32.129
A18: 2019/02/01 13:00:00 | B18: 0.016 | C18: 0.204 | D18: 0.452 | E18: 0.655 | F18: -0.098 | G18: 1.615 | H18: 0 | I18: -20.341 | J18: 68.093 | K18: 3.411 | L18: 29.033
A19: 2019/02/01 14:00:00 | B19: 0.036 | C19: 0.177 | D19: 0.504 | E19: 0.679 | F19: -0.133 | G19: 2.097 | H19: 0 | I19: -20.327 | J19: 65.84 | K19: 3.467 | L19: 41.952
A20: 2019/02/01 15:00:00 | B20: -0.059 | C20: 0.181 | D20: 0.433 | E20: 0.614 | F20: -0.131 | G20: 1.973 | H20: 0 | I20: -20.23 | J20: 64.152 | K20: 3.231 | L20: 26.843
A21: 2019/02/01 16:00:00 | B21: -0.033 | C21: 0.192 | D21: 0.436 | E21: 0.628 | F21: -0.133 | G21: 1.741 | H21: 0 | I21: -20.23 | J21: 64.257 | K21: 3.244 | L21: 38.24
A22: 2019/02/01 17:00:00 | B22: -0.054 | C22: 0.139 | D22: 0.522 | E22: 0.661 | F22: -0.09 | G22: 2.008 | H22: 0 | I22: -20.393 | J22: 65.018 | K22: 3.351 | L22: 50.4
A23: 2019/02/01 18:00:00 | B23: 0.057 | C23: 0.169 | D23: 0.546 | E23: 0.715 | F23: -0.047 | G23: 2.326 | H23: 0 | I23: -20.597 | J23: 66.588 | K23: 3.044 | L23: 45.944
A24: 2019/02/01 19:00:00 | B24: 0.012 | C24: 0.107 | D24: 0.723 | E24: 0.83 | F24: -0.089 | G24: 2.373 | H24: 0 | I24: -20.805 | J24: 68.358 | K24: 3.128 | L24: 46.84
A25: 2019/02/01 20:00:00 | B25: 0.025 | C25: 0.11 | D25: 0.619 | E25: 0.728 | F25: -0.086 | G25: 2.439 | H25: 0 | I25: -20.742 | J25: 69.166 | K25: 3.888 | L25: 74.084
A26: 2019/02/01 21:00:00 | B26: -0.005 | C26: 0.126 | D26: 0.567 | E26: 0.691 | F26: 0.017 | G26: 2.055 | H26: 0 | I26: -20.98 | J26: 68.184 | K26: 4.884 | L26: 84.091
A27: 2019/02/01 22:00:00 | B27: 0.032 | C27: 0.229 | D27: 1.043 | E27: 1.273 | F27: -0.089 | G27: 2.279 | H27: 0 | I27: -21.188 | J27: 68.831 | K27: 4.747 | L27: 91.058
A28: 2019/02/01 23:00:00 | B28: -0.063 | C28: 0.119 | D28: 0.887 | E28: 1.007 | F28: 0.016 | G28: 2.67 | H28: 0 | I28: -21.37 | J28: 68.721 | K28: 4.862 | L28: 89.514
A29: 2019/02/02 00:00:00 | B29: 0.041 | C29: 0.129 | D29: 0.683 | E29: 0.814 | F29: 0.032 | G29: 3.213 | H29: 0 | I29: -21.383 | J29: 66.83 | K29: 4.993 | L29: 91.598
A30: 2019/02/02 01:00:00 | B30: -0.088 | C30: 0.215 | D30: 0.524 | E30: 0.74 | F30: -0.04 | G30: 2.95 | H30: 0 | I30: -21.417 | J30: 65.912 | K30: 4.776 | L30: 95.286
A31: 2019/02/02 02:00:00 | B31: -0.056 | C31: 0.131 | D31: 0.658 | E31: 0.79 | F31: -0.061 | G31: 3.454 | H31: 0 | I31: -21.473 | J31: 67.825 | K31: 4.481 | L31: 94.888
A32: 2019/02/02 03:00:00 | B32: -0.025 | C32: 0.083 | D32: 0.69 | E32: 0.775 | F32: -0.11 | G32: 3.103 | H32: 0 | I32: -21.456 | J32: 70.201 | K32: 4.637 | L32: 88.001
A33: 2019/02/02 04:00:00 | B33: Z | C33: Z | D33: Z | E33: Z | F33: Z | G33: 2.554 | H33: 0 | I33: -21.306 | J33: 71.06 | K33: 4.098 | L33: 90.195
A34: 2019/02/02 05:00:00 | B34: -0.037 | C34: 0.064 | D34: 0.763 | E34: 0.828 | F34: 0.338 | G34: 2.251 | H34: 0 | I34: -21.243 | J34: 70.708 | K34: 4.295 | L34: 92.367
A35: 2019/02/02 06:00:00 | B35: -0.087 | C35: 0.05 | D35: 0.689 | E35: 0.738 | F35: -0.015 | G35: 2.486 | H35: 0 | I35: -21.534 | J35: 70.256 | K35: 4.554 | L35: 79.5
A36: 2019/02/02 07:00:00 | B36: -0.054 | C36: 0.087 | D36: 0.792 | E36: 0.879 | F36: 0.015 | G36: 2.207 | H36: 0 | I36: -21.705 | J36: 69.407 | K36: 4.215 | L36: 76.852
A37: 2019/02/02 08:00:00 | B37: -0.135 | C37: 0.112 | D37: 0.683 | E37: 0.797 | F37: -0.003 | G37: 2.051 | H37: 0 | I37: -21.827 | J37: 70.053 | K37: 3.928 | L37: 73.193
A38: 2019/02/02 09:00:00 | B38: -0.068 | C38: 0.096 | D38: 0.579 | E38: 0.676 | F38: 0.003 | G38: 2.251 | H38: 0 | I38: -22.444 | J38: 69.333 | K38: 4.318 | L38: 66.324
A39: 2019/02/02 10:00:00 | B39: -0.071 | C39: 0.1 | D39: 0.374 | E39: 0.476 | F39: 0.164 | G39: 2.437 | H39: 0 | I39: -22.979 | J39: 68.632 | K39: 4.46 | L39: 63.391
A40: 2019/02/02 11:00:00 | B40: -0.134 | C40: 0.173 | D40: 0.326 | E40: 0.502 | F40: -0.015 | G40: 2.078 | H40: 0 | I40: -22.871 | J40: 65.638 | K40: 4 | L40: 61.716
A41: 2019/02/02 12:00:00 | B41: -0.157 | C41: 0.203 | D41: 0.361 | E41: 0.566 | F41: 0.061 | G41: 1.601 | H41: 0 | I41: -22.815 | J41: 62.892 | K41: 4.268 | L41: 63.452
A42: 2019/02/02 13:00:00 | B42: -0.07 | C42: 0.265 | D42: 0.283 | E42: 0.55 | F42: -0.067 | G42: 1.354 | H42: 0 | I42: -22.499 | J42: 60.224 | K42: 3.7 | L42: 65.073
A43: 2019/02/02 14:00:00 | B43: -0.11 | C43: 0.155 | D43: 0.314 | E43: 0.473 | F43: 0.029 | G43: 1.291 | H43: 0 | I43: -22.344 | J43: 59.801 | K43: 2.954 | L43: 56.849
A44: 2019/02/02 15:00:00 | B44: -0.05 | C44: 0.271 | D44: 0.367 | E44: 0.64 | F44: 0.026 | G44: 1.378 | H44: 0 | I44: -21.951 | J44: 63.47 | K44: 2.258 | L44: 23.241
A45: 2019/02/02 16:00:00 | B45: -0.131 | C45: 1.237 | D45: 0.872 | E45: 2.112 | F45: 0.005 | G45: 1.664 | H45: 0 | I45: -21.66 | J45: 64.715 | K45: 2.392 | L45: 346.445
A46: 2019/02/02 17:00:00 | B46: -0.092 | C46: 2.086 | D46: 2.914 | E46: 5.003 | F46: 0.034 | G46: 4.731 | H46: 0 | I46: -22.315 | J46: 63.434 | K46: 3.908 | L46: 342.836
A47: 2019/02/02 18:00:00 | B47: -0.085 | C47: 0.676 | D47: 1.457 | E47: 2.136 | F47: 0.014 | G47: 2.732 | H47: 0 | I47: -22.848 | J47: 61.933 | K47: 3.218 | L47: 346.111
A48: 2019/02/02 19:00:00 | B48: -0.08 | C48: 0.47 | D48: 1.625 | E48: 2.098 | F48: -0.019 | G48: 1.674 | H48: 0 | I48: -24.129 | J48: 60.824 | K48: 1.699 | L48: 341.198
A49: 2019/02/02 20:00:00 | B49: 0.002 | C49: 0.196 | D49: 2.131 | E49: 2.329 | F49: 0.017 | G49: 1.59 | H49: 0 | I49: -25.925 | J49: 63.03 | K49: 0.897 | L49: 317.986
A50: 2019/02/02 21:00:00 | B50: -0.183 | C50: 0.235 | D50: 2.754 | E50: 2.992 | F50: 0.175 | G50: 1.288 | H50: 0 | I50: -24.826 | J50: 63.522 | K50: 1.824 | L50: 337.847
A51: 2019/02/02 22:00:00 | B51: -0.002 | C51: 0.233 | D51: 2.65 | E51: 2.886 | F51: 0.038 | G51: 1.162 | H51: 0 | I51: -24.683 | J51: 64.193 | K51: 1.717 | L51: 344.162
A52: 2019/02/02 23:00:00 | B52: -0.03 | C52: 0.218 | D52: 2.329 | E52: 2.551 | F52: 0.072 | G52: 1.086 | H52: 0 | I52: -24.963 | J52: 66.168 | K52: 1.7 | L52: 332.144
A53: 2019/02/03 00:00:00 | B53: -0.018 | C53: 0.152 | D53: 2.867 | E53: 3.022 | F53: 0.008 | G53: 1.445 | H53: 0 | I53: -24.75 | J53: 65.851 | K53: 2.675 | L53: 330.509
A54: 2019/02/03 01:00:00 | B54: 0.067 | C54: 0.202 | D54: 1.849 | E54: 2.054 | F54: 0.03 | G54: 0.894 | H54: 0 | I54: -25.021 | J54: 65.608 | K54: 2.441 | L54: 322.308
A55: 2019/02/03 02:00:00 | B55: 0.316 | C55: 0.153 | D55: 1.483 | E55: 1.641 | F55: 0.099 | G55: 0.674 | H55: 0 | I55: -25.395 | J55: 65.362 | K55: 2.378 | L55: 322.208
A56: 2019/02/03 03:00:00 | B56: Z | C56: Z | D56: Z | E56: Z | F56: Z | G56: 0.721 | H56: 0 | I56: -25.524 | J56: 65.415 | K56: 1.672 | L56: 300.402
A57: 2019/02/03 04:00:00 | B57: 0.214 | C57: 0.134 | D57: 1.935 | E57: 2.073 | F57: 0.555 | G57: 0.794 | H57: 0 | I57: -25.979 | J57: 65.403 | K57: 2.218 | L57: 316.595
A58: 2019/02/03 05:00:00 | B58: 0.222 | C58: 0.147 | D58: 1.844 | E58: 1.995 | F58: 0.167 | G58: 0.875 | H58: 0 | I58: -26.185 | J58: 66.082 | K58: 2.634 | L58: 331.188
A59: 2019/02/03 06:00:00 | B59: 0.418 | C59: 0.195 | D59: 2.438 | E59: 2.636 | F59: -0.018 | G59: 1.067 | H59: 0 | I59: -26.464 | J59: 66.628 | K59: 2.928 | L59: 334.882
A60: 2019/02/03 07:00:00 | B60: 0.215 | C60: 0.572 | D60: 2.45 | E60: 3.025 | F60: 0.147 | G60: 1.451 | H60: 0 | I60: -27.007 | J60: 66.512 | K60: 3.344 | L60: 343.789
A61: 2019/02/03 08:00:00 | B61: 0.198 | C61: 0.419 | D61: 2.437 | E61: 2.86 | F61: 0.149 | G61: 1.628 | H61: 0 | I61: -27.616 | J61: 67.23 | K61: 3.226 | L61: 344.404
A62: 2019/02/03 09:00:00 | B62: -0.087 | C62: 0.465 | D62: 2.05 | E62: 2.518 | F62: 0.097 | G62: 1.611 | H62: 0 | I62: -28.139 | J62: 66.851 | K62: 2.599 | L62: 345.629
A63: 2019/02/03 10:00:00 | B63: -0.062 | C63: 0.533 | D63: 1.902 | E63: 2.436 | F63: 0.022 | G63: 1.722 | H63: 0 | I63: -28.273 | J63: 66.509 | K63: 2.363 | L63: 349.927
A64: 2019/02/03 11:00:00 | B64: -0.143 | C64: 0.497 | D64: 1.287 | E64: 1.787 | F64: -0.019 | G64: 1.999 | H64: 0 | I64: -28.233 | J64: 65.62 | K64: 2.72 | L64: 352.607
A65: 2019/02/03 12:00:00 | B65: -0.106 | C65: 0.628 | D65: 1.284 | E65: 1.914 | F65: -0.037 | G65: 2.112 | H65: 0 | I65: -28.13 | J65: 65.161 | K65: 3.062 | L65: 348.498
A66: 2019/02/03 13:00:00 | B66: -0.131 | C66: 0.624 | D66: 0.883 | E66: 1.508 | F66: -0.069 | G66: 2.256 | H66: 0 | I66: -27.705 | J66: 63.632 | K66: 2.848 | L66: 346.141
A67: 2019/02/03 14:00:00 | B67: -0.042 | C67: 1.155 | D67: 1.223 | E67: 2.381 | F67: -0.06 | G67: 2.472 | H67: 0 | I67: -27.179 | J67: 62.924 | K67: 3.133 | L67: 345.86
A68: 2019/02/03 15:00:00 | B68: -0.057 | C68: 0.294 | D68: 0.468 | E68: 0.764 | F68: 0.025 | G68: 2.531 | H68: 0 | I68: -26.326 | J68: 60.677 | K68: 2.969 | L68: 355.315
A69: 2019/02/03 16:00:00 | B69: -0.178 | C69: 0.158 | D69: 0.536 | E69: 0.697 | F69: -0.05 | G69: 2.805 | H69: 0 | I69: -26.277 | J69: 61.127 | K69: 2.889 | L69: 351.661
A70: 2019/02/03 17:00:00 | B70: -0.081 | C70: 0.093 | D70: 0.604 | E70: 0.698 | F70: -0.117 | G70: 2.684 | H70: 0 | I70: -26.04 | J70: 62.022 | K70: 2.811 | L70: 353.198
A71: 2019/02/03 18:00:00 | B71: -0.019 | C71: 0.036 | D71: 0.452 | E71: 0.489 | F71: -0.14 | G71: 2.51 | H71: 0 | I71: -26.056 | J71: 62.785 | K71: 2.441 | L71: 351.866
A72: 2019/02/03 19:00:00 | B72: -0.128 | C72: 0.063 | D72: 0.573 | E72: 0.638 | F72: 0.009 | G72: 2.715 | H72: 0 | I72: -26.236 | J72: 63.515 | K72: 2.786 | L72: 350.483
A73: 2019/02/03 20:00:00 | B73: -0.109 | C73: 0.001 | D73: 0.462 | E73: 0.463 | F73: -0.052 | G73: 3.126 | H73: 0 | I73: -26.411 | J73: 63.834 | K73: 2.536 | L73: 352.784
A74: 2019/02/03 21:00:00 | B74: -0.095 | C74: -0.035 | D74: 0.68 | E74: 0.645 | F74: -0.15 | G74: 3.5 | H74: 0 | I74: -26.488 | J74: 64.412 | K74: 2.824 | L74: 352.881
A75: 2019/02/03 22:00:00 | B75: -0.107 | C75: -0.04 | D75: 0.814 | E75: 0.773 | F75: -0.17 | G75: 3.091 | H75: 0 | I75: -26.399 | J75: 64.881 | K75: 3.334 | L75: 16.477
A76: 2019/02/03 23:00:00 | B76: -0.136 | C76: -0.093 | D76: 0.66 | E76: 0.567 | F76: -0.066 | G76: 2.709 | H76: 0 | I76: -26.217 | J76: 64.234 | K76: 3.284 | L76: 23.414
A77: 2019/02/04 00:00:00 | B77: -0.13 | C77: -0.025 | D77: 0.619 | E77: 0.594 | F77: -0.067 | G77: 2.643 | H77: 0 | I77: -26.167 | J77: 63.729 | K77: 2.337 | L77: 38.168
A78: 2019/02/04 01:00:00 | B78: -0.237 | C78: -0.071 | D78: 0.901 | E78: 0.83 | F78: -0.095 | G78: 3.114 | H78: 0 | I78: -26.045 | J78: 63.758 | K78: 1.675 | L78: 54.395
A79: 2019/02/04 02:00:00 | B79: Z | C79: Z | D79: Z | E79: Z | F79: Z | G79: 2.993 | H79: 0 | I79: -26.032 | J79: 65.044 | K79: 1.446 | L79: 57.867
A80: 2019/02/04 03:00:00 | B80: 0.015 | C80: -0.005 | D80: 0.918 | E80: 0.914 | F80: 0.546 | G80: 2.768 | H80: 0 | I80: -25.972 | J80: 65.455 | K80: 1.281 | L80: 52.788
A81: 2019/02/04 04:00:00 | B81: -0.167 | C81: -0.055 | D81: 0.755 | E81: 0.701 | F81: -0.015 | G81: 2.358 | H81: 0 | I81: -25.902 | J81: 66.004 | K81: 1.247 | L81: 67.885
A82: 2019/02/04 05:00:00 | B82: -0.151 | C82: -0.071 | D82: 0.691 | E82: 0.621 | F82: 0.064 | G82: 1.859 | H82: 0 | I82: -26.006 | J82: 65.601 | K82: 1.262 | L82: 60.626
A83: 2019/02/04 06:00:00 | B83: -0.208 | C83: 0.055 | D83: 0.907 | E83: 0.963 | F83: -0.081 | G83: 2.652 | H83: 0 | I83: -26.209 | J83: 66.239 | K83: 1.357 | L83: 33.863
A84: 2019/02/04 07:00:00 | B84: -0.122 | C84: -0.043 | D84: 1.039 | E84: 0.996 | F84: -0.023 | G84: 2.218 | H84: 0 | I84: -26.097 | J84: 66.364 | K84: 2.476 | L84: 92.3
A85: 2019/02/04 08:00:00 | B85: -0.158 | C85: 0.03 | D85: 1.448 | E85: 1.479 | F85: -0.151 | G85: 1.674 | H85: 0 | I85: -26.034 | J85: 65.063 | K85: 2.118 | L85: 97.736
A86: 2019/02/04 09:00:00 | B86: -0.097 | C86: 1.089 | D86: 1.793 | E86: 2.882 | F86: -0.025 | G86: 2.361 | H86: 0 | I86: -26.069 | J86: 64.741 | K86: 1.244 | L86: 105.456
A87: 2019/02/04 10:00:00 | B87: -0.082 | C87: 0.258 | D87: 1.618 | E87: 1.877 | F87: -0.075 | G87: 1.822 | H87: 0 | I87: -26.034 | J87: 65.203 | K87: 1.031 | L87: 63.841
A88: 2019/02/04 11:00:00 | B88: -0.046 | C88: 0.213 | D88: 1.071 | E88: 1.285 | F88: -0.143 | G88: 1.456 | H88: 0 | I88: -25.719 | J88: 63.852 | K88: 1.096 | L88: 72.58
A89: 2019/02/04 12:00:00 | B89: 0.383 | C89: 0.618 | D89: 1.233 | E89: 1.853 | F89: 0.008 | G89: 1.378 | H89: 0 | I89: -25.341 | J89: 63.206 | K89: 1.142 | L89: 96.993
A90: 2019/02/04 13:00:00 | B90: 2.789 | C90: 2.046 | D90: 2.612 | E90: 4.659 | F90: 0.067 | G90: 1.178 | H90: 0 | I90: -24.942 | J90: 63.256 | K90: 1.345 | L90: 99.656
A91: 2019/02/04 14:00:00 | B91: 3.172 | C91: 3.104 | D91: 2.114 | E91: 5.219 | F91: 0.057 | G91: 1.273 | H91: 0 | I91: -24.555 | J91: 63.227 | K91: 1.802 | L91: 87.495
A92: 2019/02/04 15:00:00 | B92: 2.587 | C92: 5.803 | D92: 1.277 | E92: 7.081 | F92: 0.087 | G92: 1.709 | H92: 0 | I92: -24.11 | J92: 63.308 | K92: 1.457 | L92: 83.514
A93: 2019/02/04 16:00:00 | B93: 4.969 | C93: 0.808 | D93: 1.703 | E93: 2.511 | F93: 0.05 | G93: 0.886 | H93: 0 | I93: -24.049 | J93: 63.649 | K93: 1.276 | L93: 93.813
A94: 2019/02/04 17:00:00 | B94: 4.367 | C94: 0.965 | D94: 2.562 | E94: 3.529 | F94: 0.023 | G94: 1.215 | H94: 0 | I94: -24.152 | J94: 65.232 | K94: 1.665 | L94: 96.695
A95: 2019/02/04 18:00:00 | B95: 3.562 | C95: 0.285 | D95: 1.906 | E95: 2.193 | F95: -0.03 | G95: 1.356 | H95: 0 | I95: -24.264 | J95: 66.628 | K95: 1.775 | L95: 100.841
A96: 2019/02/04 19:00:00 | B96: 3.779 | C96: 0.03 | D96: 3.341 | E96: 3.374 | F96: -0.02 | G96: 0.826 | H96: 0 | I96: -24.428 | J96: 68.75 | K96: 1.723 | L96: 111.145
A97: 2019/02/04 20:00:00 | B97: 3.177 | C97: -0.009 | D97: 3.324 | E97: 3.316 | F97: 0.081 | G97: 0.862 | H97: 0 | I97: -24.4 | J97: 69.14 | K97: 1.017 | L97: 115.116
A98: 2019/02/04 21:00:00 | B98: 2.717 | C98: -0.012 | D98: 2.918 | E98: 2.906 | F98: 0.077 | G98: 1.177 | H98: 0 | I98: -24.249 | J98: 68.247 | K98: 0.335 | L98: 126.907
A99: 2019/02/04 22:00:00 | B99: 1.494 | C99: -0.001 | D99: 2.57 | E99: 2.57 | F99: 0.117 | G99: 1.346 | H99: 0 | I99: -24.243 | J99: 67.897 | K99: 0.761 | L99: 136.769
A100: 2019/02/04 23:00:00 | B100: 0.685 | C100: 0.062 | D100: 2.577 | E100: 2.642 | F100: 0.226 | G100: 1.311 | H100: 0 | I100: -24.141 | J100: 67.831 | K100: 0.497 | L100: 128.678
A101: 2019/02/05 00:00:00 | B101: 0.518 | C101: 0.028 | D101: 3.037 | E101: 3.069 | F101: 0.232 | G101: 1.294 | H101: 0 | I101: -24.441 | J101: 68.155 | K101: 0.325 | L101: 78.912
A102: 2019/02/05 01:00:00 | B102: Z | C102: Z | D102: Z | E102: Z | F102: Z | G102: 4.962 | H102: 0 | I102: -24.642 | J102: 68.372 | K102: 0.383 | L102: 88.495
A103: 2019/02/05 02:00:00 | B103: 0.28 | C103: 0.07 | D103: 3.875 | E103: 3.947 | F103: 0.654 | G103: 2.34 | H103: 0 | I103: -24.794 | J103: 68.699 | K103: 0.758 | L103: 124.352
A104: 2019/02/05 03:00:00 | B104: 0.194 | C104: 0.013 | D104: 3.602 | E104: 3.617 | F104: 0.18 | G104: 1.743 | H104: 0 | I104: -25.04 | J104: 68.163 | K104: 0.591 | L104: 141.806
A105: 2019/02/05 04:00:00 | B105: 0.103 | C105: 0.053 | D105: 3.516 | E105: 3.57 | F105: 0.214 | G105: 1.676 | H105: 0 | I105: -25.12 | J105: 64.98 | K105: 0.072 | L105: 234.926
A106: 2019/02/05 05:00:00 | B106: 0.025 | C106: 0.114 | D106: 3.671 | E106: 3.787 | F106: 0.2 | G106: 2.127 | H106: 0 | I106: -28.044 | J106: 62.682 | K106: 0.536 | L106: 267.73
A107: 2019/02/05 06:00:00 | B107: -0.049 | C107: -0.009 | D107: 4.354 | E107: 4.346 | F107: 0.203 | G107: 2.17 | H107: 0 | I107: -31.595 | J107: 62.033 | K107: 0.592 | L107: 230.794
A108: 2019/02/05 07:00:00 | B108: -0.063 | C108: 0.04 | D108: 4.532 | E108: 4.574 | F108: 0.172 | G108: 2.345 | H108: 0 | I108: -34.676 | J108: 63.034 | K108: 0.952 | L108: 226.476
A109: 2019/02/05 08:00:00 | B109: -0.038 | C109: 0.042 | D109: 5.571 | E109: 5.615 | F109: 0.237 | G109: 2.907 | H109: 0 | I109: -36.176 | J109: 63.125 | K109: 0.749 | L109: 200.575
A110: 2019/02/05 09:00:00 | B110: -0.032 | C110: 0.56 | D110: 7.078 | E110: 7.638 | F110: 0.161 | G110: 16.513 | H110: 0 | I110: -37.373 | J110: 59.828 | K110: 0.756 | L110: 187.746
A111: 2019/02/05 10:00:00 | B111: -0.003 | C111: 2.358 | D111: 8.032 | E111: 10.391 | F111: 0.595 | G111: 4.683 | H111: 0 | I111: -37.608 | J111: 59.539 | K111: 0.48 | L111: 235.712
A112: 2019/02/05 11:00:00 | B112: 0.123 | C112: 9.069 | D112: 10.267 | E112: 19.336 | F112: 0.738 | G112: 2.553 | H112: 0 | I112: -34.632 | J112: 65.202 | K112: 0.935 | L112: 315.098
A113: 2019/02/05 12:00:00 | B113: 0.171 | C113: 12.843 | D113: 9.614 | E113: 22.458 | F113: 0.488 | G113: 2.593 | H113: 0 | I113: -31.951 | J113: 67.909 | K113: 1.916 | L113: 330.055
A114: 2019/02/05 13:00:00 | B114: 0.557 | C114: 15.285 | D114: 9.064 | E114: 24.35 | F114: 0.299 | G114: 2.453 | H114: 0 | I114: -29.582 | J114: 66.365 | K114: 1.569 | L114: 335.454
A115: 2019/02/05 14:00:00 | B115: 0.899 | C115: 11.321 | D115: 7.085 | E115: 18.406 | F115: 0.156 | G115: 2.697 | H115: 0 | I115: -27.734 | J115: 66.19 | K115: 1.61 | L115: 340.405
A116: 2019/02/05 15:00:00 | B116: 1.623 | C116: 7.79 | D116: 5.924 | E116: 13.715 | F116: 0.139 | G116: 2.437 | H116: 0 | I116: -26.302 | J116: 65.361 | K116: 1.55 | L116: 334.67
A117: 2019/02/05 16:00:00 | B117: 1.194 | C117: 5.553 | D117: 5.34 | E117: 10.894 | F117: 0.035 | G117: 2.541 | H117: 0 | I117: -24.779 | J117: 61.38 | K117: 0.779 | L117: 278.962
A118: 2019/02/05 17:00:00 | B118: 1.317 | C118: 3.559 | D118: 5.424 | E118: 8.983 | F118: 0.05 | G118: 1.94 | H118: 0 | I118: -24.41 | J118: 61.308 | K118: 0.951 | L118: 250.996
A119: 2019/02/05 18:00:00 | B119: 1.438 | C119: 10.144 | D119: 10.845 | E119: 20.99 | F119: 0.088 | G119: 4.847 | H119: 0 | I119: -26.368 | J119: 61.411 | K119: 0.364 | L119: 285.663
A120: 2019/02/05 19:00:00 | B120: 1.076 | C120: 0.503 | D120: 8.068 | E120: 8.571 | F120: 0.137 | G120: 2.031 | H120: 0 | I120: -28.892 | J120: 64.044 | K120: 0.661 | L120: 297.577
A121: 2019/02/05 20:00:00 | B121: 0.89 | C121: 0.129 | D121: 9.461 | E121: 9.59 | F121: 0.142 | G121: 3.001 | H121: 0 | I121: -29.918 | J121: 65.654 | K121: 0.873 | L121: 317.631
A122: 2019/02/05 21:00:00 | B122: 0.784 | C122: 0.248 | D122: 14.861 | E122: 15.109 | F122: 0.258 | G122: 4.203 | H122: 0 | I122: -29.775 | J122: 65.833 | K122: 0.835 | L122: 314.163
A123: 2019/02/05 22:00:00 | B123: 0.62 | C123: 0.207 | D123: 14.456 | E123: 14.662 | F123: 0.224 | G123: 6.276 | H123: 0 | I123: -30.781 | J123: 64.486 | K123: 0.662 | L123: 302.449
A124: 2019/02/05 23:00:00 | B124: 0.434 | C124: 0.347 | D124: 13.567 | E124: 13.914 | F124: 0.203 | G124: 10.575 | H124: 0 | I124: -31.433 | J124: 66.747 | K124: 0.877 | L124: 306.855
A125: 2019/02/06 00:00:00 | B125: Z | C125: Z | D125: Z | E125: Z | F125: Z | G125: 7.846 | H125: 0 | I125: -30.286 | J125: 67.885 | K125: 1.231 | L125: 324.074
A126: 2019/02/06 01:00:00 | B126: 0.635 | C126: 0.22 | D126: 9.716 | E126: 9.937 | F126: 0.813 | G126: 5.508 | H126: 0 | I126: -32.232 | J126: 65.955 | K126: 0.751 | L126: 265.858
A127: 2019/02/06 02:00:00 | B127: 0.33 | C127: 0.225 | D127: 10.988 | E127: 11.212 | F127: 0.33 | G127: 4.771 | H127: 0 | I127: -31.469 | J127: 67.493 | K127: 1.334 | L127: 324.878
A128: 2019/02/06 03:00:00 | B128: 0.375 | C128: 0.368 | D128: 14.75 | E128: 15.118 | F128: 0.183 | G128: 4.95 | H128: 0 | I128: -31.083 | J128: 67.573 | K128: 1.862 | L128: 337.122
A129: 2019/02/06 04:00:00 | B129: 0.474 | C129: 0.406 | D129: 15.889 | E129: 16.296 | F129: 0.348 | G129: 6.251 | H129: 0 | I129: -32.058 | J129: 67.295 | K129: 1.168 | L129: 331.368
A130: 2019/02/06 05:00:00 | B130: 0.481 | C130: 0.417 | D130: 16.422 | E130: 16.841 | F130: 0.334 | G130: 7.475 | H130: 0 | I130: -32.485 | J130: 67.841 | K130: 0.862 | L130: 328.558
A131: 2019/02/06 06:00:00 | B131: 0.581 | C131: 0.356 | D131: 15.086 | E131: 15.442 | F131: 0.094 | G131: 6.926 | H131: 0 | I131: -32.237 | J131: 67.151 | K131: 0.581 | L131: 288.501
A132: 2019/02/06 07:00:00 | B132: 0.464 | C132: 0.219 | D132: 15.548 | E132: 15.766 | F132: 0.134 | G132: 7.227 | H132: 0 | I132: -32.879 | J132: 65.814 | K132: 0.619 | L132: 316.958
A133: 2019/02/06 08:00:00 | B133: 0.387 | C133: 0.102 | D133: 16.764 | E133: 16.867 | F133: 0.378 | G133: 45.702 | H133: 0 | I133: -34.159 | J133: 64.175 | K133: 0.561 | L133: 256.205
A134: 2019/02/06 09:00:00 | B134: 0.401 | C134: 0.339 | D134: 16.048 | E134: 16.386 | F134: 0.476 | G134: 4.512 | H134: 0 | I134: -36.328 | J134: 62.579 | K134: 1.076 | L134: 212.26
A135: 2019/02/06 10:00:00 | B135: 0.271 | C135: 5.819 | D135: 15.019 | E135: 20.838 | F135: 0.549 | G135: 4.488 | H135: 0 | I135: -36.317 | J135: 62.249 | K135: 0.975 | L135: 218.07
A136: 2019/02/06 11:00:00 | B136: 0.377 | C136: 13.081 | D136: 12.089 | E136: 25.17 | F136: 0.589 | G136: 4.695 | H136: 0 | I136: -34.341 | J136: 64.23 | K136: 0.808 | L136: 299.442
A137: 2019/02/06 12:00:00 | B137: 0.547 | C137: 17.546 | D137: 10.873 | E137: 28.419 | F137: 0.591 | G137: 3.446 | H137: 0 | I137: -32.189 | J137: 63.109 | K137: 1.29 | L137: 341.601
A138: 2019/02/06 13:00:00 | B138: 0.929 | C138: 17.335 | D138: 10.007 | E138: 27.341 | F138: 0.46 | G138: 2.477 | H138: 0 | I138: -29.627 | J138: 63.047 | K138: 1.167 | L138: 330.566
A139: 2019/02/06 14:00:00 | B139: 1.279 | C139: 11.153 | D139: 7.69 | E139: 18.843 | F139: 0.085 | G139: 1.769 | H139: 0 | I139: -26.733 | J139: 59.686 | K139: 0.8 | L139: 331.808
A140: 2019/02/06 15:00:00 | B140: 0.975 | C140: 7.985 | D140: 6.521 | E140: 14.506 | F140: 0.034 | G140: 1.703 | H140: 0 | I140: -24.593 | J140: 56.43 | K140: 0.24 | L140: 325.284
A141: 2019/02/06 16:00:00 | B141: 0.716 | C141: 4.861 | D141: 6.007 | E141: 10.867 | F141: 0.048 | G141: 1.688 | H141: 0 | I141: -23.169 | J141: 52.697 | K141: 0.318 | L141: 298.544
A142: 2019/02/06 17:00:00 | B142: 0.839 | C142: 5.404 | D142: 8.016 | E142: 13.419 | F142: -0.05 | G142: 2.424 | H142: 0 | I142: -24.938 | J142: 56.7 | K142: 0.727 | L142: 319.09
A143: 2019/02/06 18:00:00 | B143: 0.685 | C143: 3.401 | D143: 10.634 | E143: 14.036 | F143: 0.021 | G143: 4.554 | H143: 0 | I143: -26.306 | J143: 56.22 | K143: 0.367 | L143: 283.802
A144: 2019/02/06 19:00:00 | B144: 0.369 | C144: 0.422 | D144: 8.439 | E144: 8.86 | F144: 0.016 | G144: 9.386 | H144: 0 | I144: -30.137 | J144: 60.093 | K144: 0.516 | L144: 233.297
A145: 2019/02/06 20:00:00 | B145: 0.222 | C145: -0.074 | D145: 9.456 | E145: 9.383 | F145: -0.009 | G145: 10.861 | H145: 0 | I145: -33.028 | J145: 59.493 | K145: 0.599 | L145: 204.983
A146: 2019/02/06 21:00:00 | B146: 0.323 | C146: -0.087 | D146: 13.127 | E146: 13.04 | F146: 0.136 | G146: 10.816 | H146: 0 | I146: -34.734 | J146: 61.852 | K146: 1.036 | L146: 155.528
A147: 2019/02/06 22:00:00 | B147: 0.282 | C147: 0.007 | D147: 14.662 | E147: 14.669 | F147: 0.493 | G147: 10.543 | H147: 0 | I147: -36.113 | J147: 57.999 | K147: 0.609 | L147: 165.35
A148: 2019/02/06 23:00:00 | B148: Z | C148: Z | D148: Z | E148: Z | F148: Z | G148: 11.282 | H148: 0 | I148: -37.502 | J148: 58.263 | K148: 0.897 | L148: 170.176
A149: 2019/02/07 00:00:00 | B149: 0.218 | C149: 4.301 | D149: 20.251 | E149: 24.552 | F149: 1.51 | G149: 10.498 | H149: 0 | I149: -38.425 | J149: 57.2 | K149: 1.143 | L149: 159.929
A150: 2019/02/07 01:00:00 | B150: 0.145 | C150: -0.123 | D150: 17.031 | E150: 16.907 | F150: 0.519 | G150: 9.871 | H150: 0 | I150: -39.406 | J150: 56.903 | K150: 1.217 | L150: 160.574
A151: 2019/02/07 02:00:00 | B151: 0.127 | C151: -0.221 | D151: 8.457 | E151: 8.237 | F151: 0.449 | G151: 9.627 | H151: 0 | I151: -40.191 | J151: 56.78 | K151: 1.198 | L151: 158.824
A152: 2019/02/07 03:00:00 | B152: 0.111 | C152: 0.09 | D152: 0.285 | E152: 0.375 | F152: 0.339 | G152: 10.825 | H152: 0 | I152: -41.137 | J152: 57.007 | K152: 1.079 | L152: 179.263
A153: 2019/02/07 04:00:00 | B153: 0.115 | C153: -0.021 | D153: 0.124 | E153: 0.104 | F153: 0.628 | G153: 10.717 | H153: 0 | I153: -41.773 | J153: 57.406 | K153: 0.994 | L153: 184.974
A154: 2019/02/07 05:00:00 | B154: 0.065 | C154: 0.041 | D154: 0.015 | E154: 0.056 | F154: 0.419 | G154: 9.957 | H154: 0 | I154: -42.137 | J154: 57.207 | K154: 0.93 | L154: 211.089
A155: 2019/02/07 06:00:00 | B155: 0.076 | C155: 0.049 | D155: 0.029 | E155: 0.079 | F155: 0.496 | G155: 9.686 | H155: 0 | I155: -42.462 | J155: 57.389 | K155: 1.089 | L155: 171.5
A156: 2019/02/07 07:00:00 | B156: 0.091 | C156: 0.044 | D156: -0.007 | E156: 0.038 | F156: 0.475 | G156: 9.056 | H156: 0 | I156: -42.724 | J156: 56.083 | K156: 0.929 | L156: 203.026
A157: 2019/02/07 08:00:00 | B157: 0.016 | C157: 2.02 | D157: 7.683 | E157: 9.704 | F157: 0.48 | G157: 11.389 | H157: 0 | I157: -42.323 | J157: 55.989 | K157: 0.85 | L157: 187.084
A158: 2019/02/07 09:00:00 | B158: 0.536 | C158: -0.399 | D158: 11.108 | E158: 10.71 | F158: 0.366 | G158: 14.953 | H158: 0 | I158: -42.482 | J158: 55.617 | K158: 0.967 | L158: 175.101
A159: 2019/02/07 10:00:00 | B159: 0.588 | C159: 6.041 | D159: 6.641 | E159: 12.684 | F159: 0.636 | G159: 4.182 | H159: 0 | I159: -41.45 | J159: 57.077 | K159: 0.759 | L159: 140.36
A160: 2019/02/07 11:00:00 | B160: 0.591 | C160: 17.41 | D160: 12.11 | E160: 29.524 | F160: 0.811 | G160: 6.725 | H160: 0 | I160: -38.655 | J160: 58.72 | K160: 1.584 | L160: 143.051
A161: 2019/02/07 12:00:00 | B161: 1.311 | C161: 11.566 | D161: 7.426 | E161: 18.993 | F161: 0.4 | G161: 3.489 | H161: 0 | I161: -35.69 | J161: 57.013 | K161: 1.144 | L161: 111.477
A162: 2019/02/07 13:00:00 | B162: 1.365 | C162: 12.654 | D162: 7.197 | E162: 19.854 | F162: 0.383 | G162: 2.44 | H162: 0 | I162: -32.867 | J162: 52.502 | K162: 0.303 | L162: 326.727
A163: 2019/02/07 14:00:00 | B163: 3.287 | C163: 12.494 | D163: 6.974 | E163: 19.47 | F163: 0.389 | G163: 2.16 | H163: 0 | I163: -31.457 | J163: 55.056 | K163: 1.53 | L163: 105.131
A164: 2019/02/07 15:00:00 | B164: 8.205 | C164: 8.39 | D164: 5.555 | E164: 13.947 | F164: 0.247 | G164: 1.944 | H164: 0 | I164: -30.179 | J164: 56.404 | K164: 1.746 | L164: 104.2
A165: 2019/02/07 16:00:00 | B165: 5.603 | C165: 7.339 | D165: 5.815 | E165: 13.157 | F165: 0.169 | G165: 1.789 | H165: 0 | I165: -29.199 | J165: 55.077 | K165: 2.082 | L165: 105.718
A166: 2019/02/07 17:00:00 | B166: 4.944 | C166: 6.115 | D166: 6.53 | E166: 12.648 | F166: 0.087 | G166: 2.205 | H166: 0 | I166: -28.939 | J166: 56.011 | K166: 2.475 | L166: 110.951
A167: 2019/02/07 18:00:00 | B167: 5.462 | C167: 1.607 | D167: 5.875 | E167: 7.485 | F167: 0.064 | G167: 3.918 | H167: 0 | I167: -29.402 | J167: 58.9 | K167: 1.802 | L167: 118.232
A168: 2019/02/07 19:00:00 | B168: 1.733 | C168: 0.556 | D168: 9.247 | E168: 9.806 | F168: 0.042 | G168: 6.073 | H168: 0 | I168: -30.855 | J168: 60.842 | K168: 0.895 | L168: 146.751
A169: 2019/02/07 20:00:00 | B169: 0.625 | C169: 0.3 | D169: 9.658 | E169: 9.961 | F169: 0.006 | G169: 6.905 | H169: 0 | I169: -32.534 | J169: 64.813 | K169: 1.093 | L169: 155.029
A170: 2019/02/07 21:00:00 | B170: 0.685 | C170: 0.328 | D170: 9.222 | E170: 9.554 | F170: 0.037 | G170: 6.863 | H170: 0 | I170: -33.551 | J170: 67.595 | K170: 1.368 | L170: 160.938
A171: 2019/02/07 22:00:00 | B171: Z | C171: Z | D171: Z | E171: Z | F171: Z | G171: 7.275 | H171: 0 | I171: -34.533 | J171: 66.638 | K171: 1.489 | L171: 159.059
A172: 2019/02/07 23:00:00 | B172: 0.729 | C172: 0.564 | D172: 14.352 | E172: 14.921 | F172: 1.589 | G172: 7.441 | H172: 0 | I172: -34.453 | J172: 66.169 | K172: 1.236 | L172: 161.939
A173: 2019/02/08 00:00:00 | B173: 0.257 | C173: 1.354 | D173: 9.057 | E173: 10.416 | F173: 0.241 | G173: 6.769 | H173: 0 | I173: -35.657 | J173: 60.844 | K173: 0.8 | L173: 182.613
A174: 2019/02/08 01:00:00 | B174: 0.218 | C174: 1.089 | D174: 1.289 | E174: 2.38 | F174: 0.136 | G174: 6.177 | H174: 0 | I174: -35.696 | J174: 63.619 | K174: 0.855 | L174: 172.634
A175: 2019/02/08 02:00:00 | B175: 0.223 | C175: 1.027 | D175: 13.06 | E175: 14.09 | F175: 0.196 | G175: 6.664 | H175: 0 | I175: -34.866 | J175: 64.768 | K175: 1.61 | L175: 157.175
A176: 2019/02/08 03:00:00 | B176: 0.243 | C176: 0.843 | D176: 9.7 | E176: 10.545 | F176: 0.246 | G176: 6.683 | H176: 0 | I176: -34.061 | J176: 66.802 | K176: 1.575 | L176: 140.079
A177: 2019/02/08 04:00:00 | B177: 0.795 | C177: 0.104 | D177: 9.125 | E177: 9.231 | F177: 0.162 | G177: 6.209 | H177: 0 | I177: -33.528 | J177: 67.12 | K177: 1.85 | L177: 129.187
A178: 2019/02/08 05:00:00 | B178: 1.177 | C178: 0.048 | D178: 8.269 | E178: 8.319 | F178: -0.058 | G178: 6.224 | H178: 0 | I178: -33.738 | J178: 66.852 | K178: 2.244 | L178: 128.099
A179: 2019/02/08 06:00:00 | B179: 1.697 | C179: 0.076 | D179: 7.93 | E179: 8.008 | F179: -0.009 | G179: 6.297 | H179: 0 | I179: -33.845 | J179: 65.945 | K179: 1.805 | L179: 130.988
A180: 2019/02/08 07:00:00 | B180: 1.879 | C180: 0.219 | D180: 6.986 | E180: 7.207 | F180: 0.104 | G180: 6.433 | H180: 0 | I180: -34.02 | J180: 66.504 | K180: 2.028 | L180: 136.104
A181: 2019/02/08 08:00:00 | B181: 1.004 | C181: -1.446 | D181: 0.749 | E181: -0.696 | F181: 0.04 | G181: 6.287 | H181: 0 | I181: -33.719 | J181: 66.762 | K181: 2.452 | L181: 133.826
A182: 2019/02/08 09:00:00 | B182: 1.213 | C182: 0.135 | D182: 2.1 | E182: 2.236 | F182: 0.046 | G182: 5.642 | H182: 0 | I182: -33.121 | J182: 66.309 | K182: 2.132 | L182: 125.335
A183: 2019/02/08 10:00:00 | B183: 1.731 | C183: -0.284 | D183: 4.915 | E183: 4.631 | F183: -0.072 | G183: 5.021 | H183: 0 | I183: -32.83 | J183: 65.868 | K183: 2.74 | L183: 120.855
A184: 2019/02/08 11:00:00 | B184: 2.74 | C184: 0.706 | D184: 4.134 | E184: 4.84 | F184: -0.036 | G184: 4.594 | H184: 0 | I184: -32.024 | J184: 66.358 | K184: 2.736 | L184: 116.663
A185: 2019/02/08 12:00:00 | B185: 9.505 | C185: 3.499 | D185: 5.461 | E185: 8.959 | F185: -0.022 | G185: 3.818 | H185: 0 | I185: -30.41 | J185: 66.055 | K185: 2.414 | L185: 110.759
A186: 2019/02/08 13:00:00 | B186: 4.268 | C186: 2.716 | D186: 3.372 | E186: 6.087 | F186: 0.003 | G186: 2.68 | H186: 0 | I186: -29.418 | J186: 65.605 | K186: 3.032 | L186: 106.665
A187: 2019/02/08 14:00:00 | B187: 5.046 | C187: 2.766 | D187: 3.229 | E187: 5.995 | F187: 0.035 | G187: 2.032 | H187: 0 | I187: -27.871 | J187: 64.771 | K187: 2.757 | L187: 110.535
A188: 2019/02/08 15:00:00 | B188: 5.666 | C188: 2.604 | D188: 3.374 | E188: 5.977 | F188: 0.051 | G188: 1.459 | H188: 0 | I188: -26.58 | J188: 62.74 | K188: 2.593 | L188: 102.216
A189: 2019/02/08 16:00:00 | B189: 4.939 | C189: 1.295 | D189: 2.476 | E189: 3.771 | F189: -0.067 | G189: 1.14 | H189: 0 | I189: -25.856 | J189: 62.131 | K189: 2.087 | L189: 96.407
A190: 2019/02/08 17:00:00 | B190: 2.881 | C190: 1.001 | D190: 2.709 | E190: 3.71 | F190: -0.027 | G190: 1.191 | H190: 0 | I190: -25.454 | J190: 62.632 | K190: 1.309 | L190: 86.792
A191: 2019/02/08 18:00:00 | B191: 2.215 | C191: 1.207 | D191: 3.867 | E191: 5.072 | F191: 0 | G191: 1.593 | H191: 0 | I191: -24.894 | J191: 60.811 | K191: 0.394 | L191: 69.973
A192: 2019/02/08 19:00:00 | B192: 0.74 | C192: 0.021 | D192: 2.649 | E192: 2.668 | F192: 0.012 | G192: 2.499 | H192: 0 | I192: -25.873 | J192: 59.742 | K192: 0.311 | L192: 289.627
A193: 2019/02/08 20:00:00 | B193: 0.224 | C193: 0.007 | D193: 3.5 | E193: 3.504 | F193: 0.059 | G193: 3.724 | H193: 0 | I193: -28.235 | J193: 62.076 | K193: 0.528 | L193: 275.083
A194: 2019/02/08 21:00:00 | B194: Z | C194: Z | D194: Z | E194: Z | F194: Z | G194: 4.47 | H194: 0 | I194: -27.757 | J194: 65.503 | K194: 0.712 | L194: 285.286
A195: 2019/02/08 22:00:00 | B195: 1.164 | C195: 0.503 | D195: 5.405 | E195: 5.905 | F195: 1.289 | G195: 4.307 | H195: 0 | I195: -27.628 | J195: 65.591 | K195: 0.693 | L195: 301.137
A196: 2019/02/08 23:00:00 | B196: 1.19 | C196: 0.227 | D196: 7.886 | E196: 8.111 | F196: 0.169 | G196: 4.132 | H196: 0 | I196: -27.992 | J196: 66.734 | K196: 1.077 | L196: 318.673
A197: 2019/02/09 00:00:00 | B197: 1.404 | C197: 0.111 | D197: 9.052 | E197: 9.16 | F197: 0.115 | G197: 4.19 | H197: 0 | I197: -27.562 | J197: 67.142 | K197: 1.124 | L197: 318.494
A198: 2019/02/09 01:00:00 | B198: 1.546 | C198: 0.076 | D198: 8.611 | E198: 8.686 | F198: -0.018 | G198: 4.634 | H198: 0 | I198: -27.798 | J198: 66.71 | K198: 1.168 | L198: 298.056
A199: 2019/02/09 02:00:00 | B199: 1.016 | C199: 0.039 | D199: 10.13 | E199: 10.167 | F199: 0.16 | G199: 4.909 | H199: 0 | I199: -29.451 | J199: 64.191 | K199: 0.723 | L199: 302.504
A200: 2019/02/09 03:00:00 | B200: 0.615 | C200: 0.857 | D200: 7.916 | E200: 8.773 | F200: 0.16 | G200: 6.208 | H200: 0 | I200: -32.218 | J200: 62.899 | K200: 0.568 | L200: 259.485
A201: 2019/02/09 04:00:00 | B201: 0.574 | C201: -0.799 | D201: 5.396 | E201: 4.595 | F201: 0.179 | G201: 6.891 | H201: 0 | I201: -33.2 | J201: 62.704 | K201: 0.929 | L201: 210.875
... 483 more rows

Sheet Meadow Lake
A1: =Kerrobert!A1 -> Group: Global WYAMZ - Monthly Monthly: 02/2019 Type: AVG 1 Hr.
A3: Date & Time | B3: Meadow Lake | C3: Meadow Lake | D3: Meadow Lake | E3: Meadow Lake | F3: Meadow Lake | G3: Meadow Lake | H3: Meadow Lake | I3: Meadow Lake | J3: Meadow Lake | K3: Meadow Lake
B4: NO | C4: NO2 | D4: NOX | E4: O3 | F4: PM25 | G4: PRECIP | H4: TEMPERAT | I4: WS | J4: WD | K4: RH
B5: ppb | C5: ppb | D5: ppb | E5: ppb | F5: ug/m3(L) | G5: mm | H5: C° | I5: m/s | J5: Deg | K5: %RH
A6: 2019/02/01 01:00:00 | B6: -0.069 | C6: 0.446 | D6: 0.376 | E6: 34.347 | F6: 2.292 | G6: 0 | H6: -18.039 | I6: 5.305 | J6: 355.573 | K6: 64.456
A7: 2019/02/01 02:00:00 | B7: -0.075 | C7: 0.351 | D7: 0.275 | E7: 35.199 | F7: 2.035 | G7: 0 | H7: -18.657 | I7: 5.095 | J7: 356.366 | K7: 64.555
A8: 2019/02/01 03:00:00 | B8: -0.066 | C8: 0.319 | D8: 0.251 | E8: 36.261 | F8: 2.678 | G8: 0 | H8: -19.215 | I8: 4.855 | J8: 1.395 | K8: 65.683
A9: 2019/02/01 04:00:00 | B9: -0.097 | C9: 0.242 | D9: 0.142 | E9: 37.986 | F9: 1.687 | G9: 0 | H9: -19.755 | I9: 3.859 | J9: 357.927 | K9: 66.623
A10: 2019/02/01 05:00:00 | B10: Z | C10: Z | D10: Z | E10: Z | F10: 1.47 | G10: 0 | H10: -20.026 | I10: 5.478 | J10: 10.929 | K10: 63.416
A11: 2019/02/01 06:00:00 | B11: -0.148 | C11: 0.152 | D11: 0.003 | E11: 37.051 | F11: 1.238 | G11: 0 | H11: -20.111 | I11: 5.526 | J11: 9.935 | K11: 62.543
A12: 2019/02/01 07:00:00 | B12: -0.197 | C12: 0.187 | D12: -0.011 | E12: 36.15 | F12: 1.329 | G12: 0 | H12: -20.192 | I12: 4.959 | J12: 5.928 | K12: 62.342
A13: 2019/02/01 08:00:00 | B13: -0.12 | C13: 0.172 | D13: 0.052 | E13: 35.357 | F13: 1.944 | G13: 0 | H13: -20.352 | I13: 4.711 | J13: 7.635 | K13: 62.046
A14: 2019/02/01 09:00:00 | B14: -0.14 | C14: 0.179 | D14: 0.039 | E14: 34.989 | F14: 2.994 | G14: 0 | H14: -20.762 | I14: 5.008 | J14: 359.334 | K14: 61.413
A15: 2019/02/01 10:00:00 | B15: -0.172 | C15: 0.18 | D15: 0.006 | E15: 35.215 | F15: 3.817 | G15: 0 | H15: -21.256 | I15: 5.369 | J15: 357.27 | K15: 61.212
A16: 2019/02/01 11:00:00 | B16: -0.065 | C16: 0.144 | D16: 0.079 | E16: 36.147 | F16: 3.653 | G16: 0 | H16: -21.813 | I16: 6.624 | J16: 12.925 | K16: 60.195
A17: 2019/02/01 12:00:00 | B17: -0.123 | C17: 0.205 | D17: 0.082 | E17: 36.026 | F17: 5.384 | G17: 0 | H17: -22.459 | I17: 4.939 | J17: 8.563 | K17: 60.286
A18: 2019/02/01 13:00:00 | B18: -0.191 | C18: 0.226 | D18: 0.035 | E18: 35.574 | F18: 5.179 | G18: 0 | H18: -22.403 | I18: 3.573 | J18: 11.089 | K18: 61.263
A19: 2019/02/01 14:00:00 | B19: -0.134 | C19: 0.11 | D19: -0.024 | E19: 35.993 | F19: 3.418 | G19: 0 | H19: -22.205 | I19: 3.76 | J19: 17.473 | K19: 59.959
A20: 2019/02/01 15:00:00 | B20: -0.118 | C20: 0.207 | D20: 0.088 | E20: 36.297 | F20: 3.255 | G20: 0 | H20: -22.057 | I20: 3.373 | J20: 19.476 | K20: 60.189
A21: 2019/02/01 16:00:00 | B21: 0.004 | C21: 0.144 | D21: 0.148 | E21: 36.059 | F21: 2.896 | G21: 0 | H21: -22.03 | I21: 3.427 | J21: 17.1 | K21: 61.247
A22: 2019/02/01 17:00:00 | B22: -0.116 | C22: 0.148 | D22: 0.032 | E22: 36.206 | F22: 2.599 | G22: 0 | H22: -22.014 | I22: 3.53 | J22: 18.04 | K22: 61.723
A23: 2019/02/01 18:00:00 | B23: -0.199 | C23: 0.229 | D23: 0.029 | E23: 36.801 | F23: 2.61 | G23: 0 | H23: -21.958 | I23: 3.8 | J23: 27.163 | K23: 59.08
A24: 2019/02/01 19:00:00 | B24: -0.273 | C24: 0.228 | D24: -0.046 | E24: 36.594 | F24: 2.595 | G24: 0 | H24: -22.159 | I24: 3.471 | J24: 35.305 | K24: 61.322
A25: 2019/02/01 20:00:00 | B25: -0.244 | C25: 0.258 | D25: 0.012 | E25: 36.261 | F25: 2.731 | G25: 0 | H25: -22.242 | I25: 3.937 | J25: 31.774 | K25: 63.992
A26: 2019/02/01 21:00:00 | B26: -0.066 | C26: 0.227 | D26: 0.159 | E26: 35.904 | F26: 3.17 | G26: 0 | H26: -22.414 | I26: 3.808 | J26: 55.833 | K26: 64.624
A27: 2019/02/01 22:00:00 | B27: -0.21 | C27: 0.559 | D27: 0.349 | E27: 35.148 | F27: 5.001 | G27: 0 | H27: -22.782 | I27: 3.571 | J27: 61.017 | K27: 66.169
A28: 2019/02/01 23:00:00 | B28: -0.116 | C28: 0.499 | D28: 0.383 | E28: 34.892 | F28: 5.029 | G28: 0 | H28: -22.845 | I28: 3.547 | J28: 59.269 | K28: 66.75
A29: 2019/02/02 00:00:00 | B29: -0.141 | C29: 0.394 | D29: 0.254 | E29: 34.838 | F29: 3.193 | G29: 0 | H29: -22.817 | I29: 3.063 | J29: 74.085 | K29: 67.53
A30: 2019/02/02 01:00:00 | B30: -0.114 | C30: 0.547 | D30: 0.434 | E30: 34.56 | F30: 4.27 | G30: 0 | H30: -22.927 | I30: 3.541 | J30: 65.646 | K30: 68.111
A31: 2019/02/02 02:00:00 | B31: -0.084 | C31: 1.099 | D31: 1.016 | E31: 33.259 | F31: 4.786 | G31: 0 | H31: -23.08 | I31: 3.734 | J31: 68.301 | K31: 68.048
A32: 2019/02/02 03:00:00 | B32: -0.074 | C32: 0.679 | D32: 0.604 | E32: 33.183 | F32: 4.247 | G32: 0 | H32: -23.192 | I32: 3.556 | J32: 67.671 | K32: 68.386
A33: 2019/02/02 04:00:00 | B33: Z | C33: Z | D33: Z | E33: Z | F33: 2.93 | G33: 0 | H33: -23.119 | I33: 3.557 | J33: 68.989 | K33: 68.785
A34: 2019/02/02 05:00:00 | B34: -0.136 | C34: 0.177 | D34: 0.043 | E34: 34.054 | F34: 2.288 | G34: 0 | H34: -23.252 | I34: 4.004 | J34: 73.738 | K34: 68.254
A35: 2019/02/02 06:00:00 | B35: -0.167 | C35: 0.139 | D35: -0.026 | E35: 33.781 | F35: 2.233 | G35: 0 | H35: -23.533 | I35: 3.99 | J35: 78.488 | K35: 67.517
A36: 2019/02/02 07:00:00 | B36: -0.154 | C36: 0.317 | D36: 0.163 | E36: 33.347 | F36: 3.182 | G36: 0 | H36: -23.757 | I36: 3.7 | J36: 67.95 | K36: 67.827
A37: 2019/02/02 08:00:00 | B37: -0.007 | C37: 0.855 | D37: 0.847 | E37: 33.009 | F37: 5.153 | G37: 0 | H37: -23.873 | I37: 3.829 | J37: 65.506 | K37: 67.374
A38: 2019/02/02 09:00:00 | B38: -0.003 | C38: 1.024 | D38: 1.022 | E38: 32.638 | F38: 4.701 | G38: 0 | H38: -23.95 | I38: 3.516 | J38: 64.596 | K38: 68.311
A39: 2019/02/02 10:00:00 | B39: 0.028 | C39: 1.491 | D39: 1.519 | E39: 32.288 | F39: 5.586 | G39: 0 | H39: -23.997 | I39: 3.971 | J39: 65.591 | K39: 67.481
A40: 2019/02/02 11:00:00 | B40: 0.064 | C40: 0.818 | D40: 0.882 | E40: 33.387 | F40: 4.951 | G40: 0 | H40: -23.943 | I40: 3.878 | J40: 59.914 | K40: 65.617
A41: 2019/02/02 12:00:00 | B41: -0.222 | C41: 0.239 | D41: 0.016 | E41: 34.395 | F41: 1.15 | G41: 0 | H41: -23.511 | I41: 3.659 | J41: 71.115 | K41: 62.253
A42: 2019/02/02 13:00:00 | B42: 0.063 | C42: 0.312 | D42: 0.375 | E42: 34.645 | F42: 1.687 | G42: 0 | H42: -23.243 | I42: 3.225 | J42: 60.425 | K42: 61.795
A43: 2019/02/02 14:00:00 | B43: -0.203 | C43: 0.135 | D43: -0.069 | E43: 35.28 | F43: 0.352 | G43: 0 | H43: -23.203 | I43: 3.56 | J43: 36.149 | K43: 61.654
A44: 2019/02/02 15:00:00 | B44: -0.194 | C44: 0.217 | D44: 0.023 | E44: 35.625 | F44: 0.366 | G44: 0 | H44: -23.187 | I44: 3.894 | J44: 15.502 | K44: 63.142
A45: 2019/02/02 16:00:00 | B45: -0.139 | C45: 0.171 | D45: 0.033 | E45: 35.474 | F45: 0.316 | G45: 0 | H45: -23.635 | I45: 4.282 | J45: 11.584 | K45: 65.238
A46: 2019/02/02 17:00:00 | B46: -0.15 | C46: 0.21 | D46: 0.061 | E46: 35.556 | F46: 0.326 | G46: 0 | H46: -23.708 | I46: 3.978 | J46: 1.322 | K46: 65.849
A47: 2019/02/02 18:00:00 | B47: -0.206 | C47: 0.187 | D47: -0.019 | E47: 35.847 | F47: 0.324 | G47: 0 | H47: -24.101 | I47: 4.196 | J47: 1.298 | K47: 66.206
A48: 2019/02/02 19:00:00 | B48: -0.207 | C48: 0.215 | D48: 0.008 | E48: 36.219 | F48: 0.29 | G48: 0 | H48: -24.399 | I48: 2.845 | J48: 9.163 | K48: 65.265
A49: 2019/02/02 20:00:00 | B49: -0.09 | C49: 0.247 | D49: 0.156 | E49: 36.355 | F49: 0.354 | G49: 0 | H49: -25.239 | I49: 1.298 | J49: 343.911 | K49: 67.148
A50: 2019/02/02 21:00:00 | B50: -0.172 | C50: 0.258 | D50: 0.085 | E50: 36.291 | F50: 0.544 | G50: 0 | H50: -25.781 | I50: 1.345 | J50: 302.363 | K50: 67.784
A51: 2019/02/02 22:00:00 | B51: -0.164 | C51: 0.407 | D51: 0.242 | E51: 36.091 | F51: 0.695 | G51: 0 | H51: -26.552 | I51: 1.303 | J51: 291.272 | K51: 68.982
A52: 2019/02/02 23:00:00 | B52: -0.169 | C52: 1.168 | D52: 0.999 | E52: 35.503 | F52: 2.471 | G52: 0 | H52: -27.494 | I52: 0.749 | J52: 259.716 | K52: 67.86
A53: 2019/02/03 00:00:00 | B53: -0.221 | C53: 1.015 | D53: 0.794 | E53: 35.388 | F53: 3.262 | G53: 0 | H53: -28.779 | I53: 1.555 | J53: 243.893 | K53: 67.712
A54: 2019/02/03 01:00:00 | B54: -0.158 | C54: 0.72 | D54: 0.563 | E54: 35.816 | F54: 3.701 | G54: 0 | H54: -29.551 | I54: 1.541 | J54: 233.666 | K54: 67.836
A55: 2019/02/03 02:00:00 | B55: -0.143 | C55: 0.739 | D55: 0.598 | E55: 35.746 | F55: 7.735 | G55: 0 | H55: -30.556 | I55: 1.484 | J55: 219.417 | K55: 68.226
A56: 2019/02/03 03:00:00 | B56: Z | C56: Z | D56: Z | E56: Z | F56: 3.96 | G56: 0 | H56: -30.86 | I56: 1.097 | J56: 237.785 | K56: 67.515
A57: 2019/02/03 04:00:00 | B57: -0.138 | C57: 1.113 | D57: 0.975 | E57: 35.495 | F57: 2.977 | G57: 0 | H57: -31.98 | I57: 1.058 | J57: 226.182 | K57: 67.259
A58: 2019/02/03 05:00:00 | B58: -0.051 | C58: 0.949 | D58: 0.898 | E58: 35.38 | F58: 4.086 | G58: 0 | H58: -32.13 | I58: 1.386 | J58: 205.749 | K58: 66.742
A59: 2019/02/03 06:00:00 | B59: -0.072 | C59: 1.084 | D59: 1.01 | E59: 34.925 | F59: 5.747 | G59: 0 | H59: -32.819 | I59: 0.548 | J59: 255.519 | K59: 64.938
A60: 2019/02/03 07:00:00 | B60: -0.218 | C60: 1.155 | D60: 0.937 | E60: 34.996 | F60: 3.053 | G60: 0 | H60: -33.191 | I60: 1.119 | J60: 183.846 | K60: 66.667
A61: 2019/02/03 08:00:00 | B61: -0.08 | C61: 0.737 | D61: 0.657 | E61: 35.127 | F61: 3.198 | G61: 0 | H61: -33.105 | I61: 0.834 | J61: 201.399 | K61: 64.945
A62: 2019/02/03 09:00:00 | B62: -0.07 | C62: 0.746 | D62: 0.675 | E62: 35.008 | F62: 2.153 | G62: 0 | H62: -33.794 | I62: 1.113 | J62: 172.973 | K62: 65.429
A63: 2019/02/03 10:00:00 | B63: 0.015 | C63: 0.768 | D63: 0.783 | E63: 35.229 | F63: 2.035 | G63: 0 | H63: -32.863 | I63: 1.105 | J63: 212.186 | K63: 66.102
A64: 2019/02/03 11:00:00 | B64: 0.245 | C64: 0.798 | D64: 1.043 | E64: 34.497 | F64: 1.622 | G64: 0 | H64: -33.687 | I64: 0.588 | J64: 273.691 | K64: 65.537
A65: 2019/02/03 12:00:00 | B65: 0.222 | C65: 0.69 | D65: 0.911 | E65: 35.197 | F65: 2.049 | G65: 0 | H65: -31.201 | I65: 1.197 | J65: 276.838 | K65: 66.355
A66: 2019/02/03 13:00:00 | B66: 0.086 | C66: 0.545 | D66: 0.63 | E66: 35.078 | F66: 1.312 | G66: 0 | H66: -29.959 | I66: 1.174 | J66: 289.685 | K66: 64.761
A67: 2019/02/03 14:00:00 | B67: 0.233 | C67: 0.56 | D67: 0.792 | E67: 35.164 | F67: 1.575 | G67: 0 | H67: -29.297 | I67: 1.319 | J67: 284.771 | K67: 64.83
A68: 2019/02/03 15:00:00 | B68: 0.298 | C68: 0.566 | D68: 0.863 | E68: 35.417 | F68: 2.176 | G68: 0 | H68: -28.813 | I68: 1.649 | J68: 280.202 | K68: 65.194
A69: 2019/02/03 16:00:00 | B69: 0.205 | C69: 0.704 | D69: 0.907 | E69: 35.061 | F69: 2.204 | G69: 0 | H69: -27.905 | I69: 1.719 | J69: 267.465 | K69: 65.495
A70: 2019/02/03 17:00:00 | B70: 0.06 | C70: 0.628 | D70: 0.687 | E70: 35.449 | F70: 1.212 | G70: 0 | H70: -27.283 | I70: 1.511 | J70: 261.92 | K70: 65.512
A71: 2019/02/03 18:00:00 | B71: 0.089 | C71: 0.811 | D71: 0.899 | E71: 35.376 | F71: 1.183 | G71: 0 | H71: -27.426 | I71: 1.384 | J71: 262.186 | K71: 65.654
A72: 2019/02/03 19:00:00 | B72: -0.015 | C72: 0.81 | D72: 0.793 | E72: 35.553 | F72: 1.022 | G72: 0 | H72: -27.589 | I72: 1.015 | J72: 287.72 | K72: 65.797
A73: 2019/02/03 20:00:00 | B73: 0.004 | C73: 0.458 | D73: 0.46 | E73: 36.427 | F73: 0.895 | G73: 0 | H73: -27.878 | I73: 1.103 | J73: 341.1 | K73: 66.05
A74: 2019/02/03 21:00:00 | B74: 0.018 | C74: 0.458 | D74: 0.474 | E74: 36.259 | F74: 0.712 | G74: 0 | H74: -27.844 | I74: 0.686 | J74: 318.618 | K74: 64.95
A75: 2019/02/03 22:00:00 | B75: -0.037 | C75: 0.649 | D75: 0.61 | E75: 36.548 | F75: 0.769 | G75: 0 | H75: -27.889 | I75: 0.749 | J75: 282.405 | K75: 63.702
A76: 2019/02/03 23:00:00 | B76: 0.025 | C76: 0.462 | D76: 0.485 | E76: 36.561 | F76: 0.706 | G76: 0 | H76: -28.805 | I76: 0.935 | J76: 244.931 | K76: 64.678
A77: 2019/02/04 00:00:00 | B77: -0.009 | C77: 0.663 | D77: 0.652 | E77: 36.512 | F77: 0.828 | G77: 0 | H77: -28.956 | I77: 0.679 | J77: 296.954 | K77: 65.145
A78: 2019/02/04 01:00:00 | B78: 0.038 | C78: 0.673 | D78: 0.708 | E78: 36.717 | F78: 0.721 | G78: 0 | H78: -29.08 | I78: 1.394 | J78: 331.936 | K78: 66.169
A79: 2019/02/04 02:00:00 | B79: Z | C79: Z | D79: Z | E79: Z | F79: 0.634 | G79: 0 | H79: -29.279 | I79: 0.842 | J79: 21.541 | K79: 67.153
A80: 2019/02/04 03:00:00 | B80: -0.012 | C80: 0.477 | D80: 0.463 | E80: 37.495 | F80: 0.896 | G80: 0 | H80: -29.036 | I80: 1.989 | J80: 45.107 | K80: 65.619
A81: 2019/02/04 04:00:00 | B81: 0.014 | C81: 0.213 | D81: 0.227 | E81: 37.809 | F81: 0.401 | G81: 0 | H81: -29.418 | I81: 1.928 | J81: 26 | K81: 67.053
A82: 2019/02/04 05:00:00 | B82: 0.006 | C82: 0.183 | D82: 0.188 | E82: 37.499 | F82: 0.431 | G82: 0 | H82: -29.347 | I82: 2.005 | J82: 0.468 | K82: 66.926
A83: 2019/02/04 06:00:00 | B83: -0.055 | C83: 0.084 | D83: 0.027 | E83: 37.445 | F83: 0.447 | G83: 0 | H83: -29.267 | I83: 1.15 | J83: 23.264 | K83: 66.158
A84: 2019/02/04 07:00:00 | B84: -0.054 | C84: 0.197 | D84: 0.141 | E84: 37.217 | F84: 0.391 | G84: 0 | H84: -29.136 | I84: 1.186 | J84: 15.191 | K84: 66.464
A85: 2019/02/04 08:00:00 | B85: 0.059 | C85: 0.164 | D85: 0.222 | E85: 37.085 | F85: 0.435 | G85: 0 | H85: -28.836 | I85: 1.16 | J85: 347.048 | K85: 65.285
A86: 2019/02/04 09:00:00 | B86: 0.017 | C86: 0.208 | D86: 0.224 | E86: 37.13 | F86: 0.489 | G86: 0 | H86: -28.902 | I86: 1.02 | J86: 16.64 | K86: 66.1
A87: 2019/02/04 10:00:00 | B87: 0.059 | C87: 0.308 | D87: 0.366 | E87: 36.755 | F87: 0.582 | G87: 0 | H87: -28.667 | I87: 1.006 | J87: 10.409 | K87: 64.939
A88: 2019/02/04 11:00:00 | B88: 0.089 | C88: 0.444 | D88: 0.532 | E88: 36.59 | F88: 1.145 | G88: 0 | H88: -28.608 | I88: 1.748 | J88: 32.534 | K88: 65.722
A89: 2019/02/04 12:00:00 | B89: 0.047 | C89: 0.182 | D89: 0.228 | E89: 36.634 | F89: 0.649 | G89: 0 | H89: -27.579 | I89: 0.612 | J89: 14.635 | K89: 62.481
A90: 2019/02/04 13:00:00 | B90: 0.274 | C90: 0.459 | D90: 0.733 | E90: 36.711 | F90: 1.117 | G90: 0 | H90: -27.223 | I90: 0.854 | J90: 16.622 | K90: 61.358
A91: 2019/02/04 14:00:00 | B91: 0.293 | C91: 0.42 | D91: 0.711 | E91: 36.328 | F91: 0.517 | G91: 0 | H91: -26.351 | I91: 1.66 | J91: 78.935 | K91: 63.175
A92: 2019/02/04 15:00:00 | B92: 0.211 | C92: 0.339 | D92: 0.548 | E92: 36.235 | F92: 0.371 | G92: 0 | H92: -25.405 | I92: 1.543 | J92: 76.591 | K92: 62.907
A93: 2019/02/04 16:00:00 | B93: 0.205 | C93: 0.464 | D93: 0.668 | E93: 36.216 | F93: 0.562 | G93: 0 | H93: -25.33 | I93: 1.754 | J93: 14.896 | K93: 65.591
A94: 2019/02/04 17:00:00 | B94: 0.048 | C94: 0.281 | D94: 0.328 | E94: 35.821 | F94: 0.481 | G94: 0 | H94: -24.625 | I94: 0.77 | J94: 0.647 | K94: 65.348
A95: 2019/02/04 18:00:00 | B95: 0.015 | C95: 0.286 | D95: 0.3 | E95: 35.658 | F95: 0.424 | G95: 0 | H95: -24.232 | I95: 0.349 | J95: 31.431 | K95: 65.873
A96: 2019/02/04 19:00:00 | B96: 0.048 | C96: 0.795 | D96: 0.841 | E96: 35.235 | F96: 0.881 | G96: 0 | H96: -24.354 | I96: 1.293 | J96: 11.94 | K96: 67.081
A97: 2019/02/04 20:00:00 | B97: 0.027 | C97: 0.733 | D97: 0.759 | E97: 34.938 | F97: 1.192 | G97: 0 | H97: -24.459 | I97: 1.428 | J97: 39.866 | K97: 69.273
A98: 2019/02/04 21:00:00 | B98: 0.087 | C98: 0.635 | D98: 0.724 | E98: 34.771 | F98: 2.156 | G98: 0 | H98: -24.426 | I98: 1.198 | J98: 94.412 | K98: 68.439
A99: 2019/02/04 22:00:00 | B99: 0.039 | C99: 0.106 | D99: 0.145 | E99: 35.216 | F99: 0.458 | G99: 0 | H99: -24.386 | I99: 0.882 | J99: 59.396 | K99: 68.033
A100: 2019/02/04 23:00:00 | B100: 0.031 | C100: 0.272 | D100: 0.303 | E100: 34.267 | F100: 0.39 | G100: 0 | H100: -24.442 | I100: 0.537 | J100: 62.521 | K100: 67.865
A101: 2019/02/05 00:00:00 | B101: 0.059 | C101: 1.769 | D101: 1.827 | E101: 32.544 | F101: 0.884 | G101: 0 | H101: -23.997 | I101: 0.056 | J101: 214.368 | K101: 65.791
A102: 2019/02/05 01:00:00 | B102: Z | C102: Z | D102: Z | E102: Z | F102: 0.948 | G102: 0 | H102: -23.828 | I102: 0.359 | J102: 228.102 | K102: 63.886
A103: 2019/02/05 02:00:00 | B103: -0.077 | C103: 1.133 | D103: 1.055 | E103: 32.183 | F103: 1.922 | G103: 0 | H103: -24.302 | I103: 0.276 | J103: 191.475 | K103: 64.594
A104: 2019/02/05 03:00:00 | B104: 0.073 | C104: 1.115 | D104: 1.189 | E104: 32.047 | F104: 2.583 | G104: 0 | H104: -24.695 | I104: 1.046 | J104: 268.101 | K104: 65.506
A105: 2019/02/05 04:00:00 | B105: 0.104 | C105: 1.694 | D105: 1.798 | E105: 31.857 | F105: 3.843 | G105: 0 | H105: -24.936 | I105: 0.513 | J105: 233.334 | K105: 65.744
A106: 2019/02/05 05:00:00 | B106: 0.049 | C106: 1.992 | D106: 2.04 | E106: 31.622 | F106: 4.409 | G106: 0 | H106: -25.633 | I106: 0.755 | J106: 244.966 | K106: 65.172
A107: 2019/02/05 06:00:00 | B107: 0.15 | C107: 1.485 | D107: 1.636 | E107: 32.446 | F107: 4.28 | G107: 0 | H107: -26.943 | I107: 0.991 | J107: 235.225 | K107: 65.784
A108: 2019/02/05 07:00:00 | B108: 0.092 | C108: 1.369 | D108: 1.463 | E108: 32.546 | F108: 5.127 | G108: 0 | H108: -28.521 | I108: 1.279 | J108: 233.26 | K108: 66.633
A109: 2019/02/05 08:00:00 | B109: 0.182 | C109: 2.292 | D109: 2.474 | E109: 31.573 | F109: 5.471 | G109: 0 | H109: -29.926 | I109: 1.197 | J109: 228.804 | K109: 66.452
A110: 2019/02/05 09:00:00 | B110: 0.058 | C110: 5.633 | D110: 5.693 | E110: 28.932 | F110: 5.815 | G110: 0 | H110: -30.248 | I110: 1.254 | J110: 230.938 | K110: 67.426
A111: 2019/02/05 10:00:00 | B111: 1.102 | C111: 5.12 | D111: 6.222 | E111: 27.964 | F111: 5.789 | G111: 0 | H111: -31.02 | I111: 0.861 | J111: 205.395 | K111: 65.567
A112: 2019/02/05 11:00:00 | B112: 1.261 | C112: 2.459 | D112: 3.72 | E112: 30.486 | F112: 3.524 | G112: 0 | H112: -28.505 | I112: 0.695 | J112: 265.947 | K112: 64.758
A113: 2019/02/05 12:00:00 | B113: 0.692 | C113: 1.024 | D113: 1.718 | E113: 33.389 | F113: 3.106 | G113: 0 | H113: -28.261 | I113: 1.329 | J113: 277.055 | K113: 65.959
A114: 2019/02/05 13:00:00 | B114: 0.765 | C114: 0.945 | D114: 1.711 | E114: 33.102 | F114: 2.154 | G114: 0 | H114: -27.584 | I114: 1.283 | J114: 278.321 | K114: 65.73
A115: 2019/02/05 14:00:00 | B115: 0.959 | C115: 1.077 | D115: 2.036 | E115: 33.415 | F115: 2.524 | G115: 0 | H115: -25.938 | I115: 1.149 | J115: 282.606 | K115: 64.024
A116: 2019/02/05 15:00:00 | B116: 0.647 | C116: 0.778 | D116: 1.425 | E116: 34.704 | F116: 6.529 | G116: 0 | H116: -25.281 | I116: 1.286 | J116: 282.433 | K116: 63.465
A117: 2019/02/05 16:00:00 | B117: 0.606 | C117: 1.102 | D117: 1.71 | E117: 34.919 | F117: 6.532 | G117: 0 | H117: -24.992 | I117: 1.276 | J117: 287.097 | K117: 63.313
A118: 2019/02/05 17:00:00 | B118: 0.715 | C118: 1.895 | D118: 2.612 | E118: 33.773 | F118: 2.847 | G118: 0 | H118: -24.463 | I118: 1.137 | J118: 265.802 | K118: 62.029
A119: 2019/02/05 18:00:00 | B119: 0.383 | C119: 3.015 | D119: 3.4 | E119: 32.677 | F119: 8.349 | G119: 0 | H119: -25.301 | I119: 0.998 | J119: 254.969 | K119: 64.159
A120: 2019/02/05 19:00:00 | B120: 0.062 | C120: 1.987 | D120: 2.05 | E120: 33.436 | F120: 17.895 | G120: 0 | H120: -27.028 | I120: 0.985 | J120: 230.395 | K120: 66.344
A121: 2019/02/05 20:00:00 | B121: 0.126 | C121: 3.205 | D121: 3.334 | E121: 31.938 | F121: 20.088 | G121: 0 | H121: -28.57 | I121: 1.047 | J121: 204.842 | K121: 66.742
A122: 2019/02/05 21:00:00 | B122: 2.032 | C122: 18.926 | D122: 20.96 | E122: 15.843 | F122: 13.713 | G122: 0 | H122: -29.453 | I122: 1.109 | J122: 196.228 | K122: 66.193
A123: 2019/02/05 22:00:00 | B123: 10.99 | C123: 29.588 | D123: 40.581 | E123: 3.78 | F123: 14.755 | G123: 0 | H123: -30.01 | I123: 0.749 | J123: 200.309 | K123: 64.531
A124: 2019/02/05 23:00:00 | B124: 0.402 | C124: 5.754 | D124: 6.158 | E124: 25.291 | F124: 8.179 | G124: 0 | H124: -31.081 | I124: 1.11 | J124: 182.556 | K124: 65.847
A125: 2019/02/06 00:00:00 | B125: Z | C125: Z | D125: Z | E125: Z | F125: 9.569 | G125: 0 | H125: -31.638 | I125: 1.281 | J125: 179.505 | K125: 66.426
A126: 2019/02/06 01:00:00 | B126: 0.383 | C126: 1.047 | D126: 1.431 | E126: 26.296 | F126: 14.013 | G126: 0 | H126: -32.734 | I126: 1.212 | J126: 170.565 | K126: 64.373
A127: 2019/02/06 02:00:00 | B127: 0.407 | C127: 0.855 | D127: 1.265 | E127: 24.527 | F127: 18.25 | G127: 0 | H127: -33.565 | I127: 1.217 | J127: 150.86 | K127: 63.748
A128: 2019/02/06 03:00:00 | B128: 0.252 | C128: 0.859 | D128: 1.112 | E128: 24.383 | F128: 10.941 | G128: 0 | H128: -33.742 | I128: 1.485 | J128: 141.833 | K128: 64.512
A129: 2019/02/06 04:00:00 | B129: 0.571 | C129: 1.481 | D129: 2.054 | E129: 22.758 | F129: 10.514 | G129: 0 | H129: -34.082 | I129: 1.263 | J129: 143.162 | K129: 63.646
A130: 2019/02/06 05:00:00 | B130: 0.639 | C130: 1.343 | D130: 1.984 | E130: 22.414 | F130: 8.493 | G130: 0 | H130: -34.584 | I130: 1.623 | J130: 122.756 | K130: 62.973
A131: 2019/02/06 06:00:00 | B131: 0.28 | C131: 0.811 | D131: 1.092 | E131: 22.923 | F131: 5.782 | G131: 0 | H131: -35.562 | I131: 1.499 | J131: 129.685 | K131: 62.924
A132: 2019/02/06 07:00:00 | B132: 0.246 | C132: 0.682 | D132: 0.93 | E132: 23.744 | F132: 4.054 | G132: 0 | H132: -35.816 | I132: 1.582 | J132: 136.706 | K132: 62.87
A133: 2019/02/06 08:00:00 | B133: 0.852 | C133: 0.991 | D133: 1.844 | E133: 22.323 | F133: 2.994 | G133: 0 | H133: -36.432 | I133: 1.601 | J133: 140.608 | K133: 62.982
A134: 2019/02/06 09:00:00 | B134: 0.073 | C134: 1.156 | D134: 1.231 | E134: 21.785 | F134: 2.961 | G134: 0 | H134: -37.026 | I134: 1.598 | J134: 140.378 | K134: 62.718
A135: 2019/02/06 10:00:00 | B135: 26.825 | C135: 18.856 | D135: 45.681 | E135: 10.258 | F135: 7.115 | G135: 0 | H135: -36.42 | I135: 1.723 | J135: 141.521 | K135: 62.998
A136: 2019/02/06 11:00:00 | B136: 15.603 | C136: 10.607 | D136: 26.209 | E136: 14.622 | F136: 2.573 | G136: 0 | H136: -31.215 | I136: 0.367 | J136: 193.352 | K136: 61.585
A137: 2019/02/06 12:00:00 | B137: 5.23 | C137: 4.2 | D137: 9.43 | E137: 29.08 | F137: 0.653 | G137: 0 | H137: -27.859 | I137: 0.773 | J137: 292.248 | K137: 61.545
A138: 2019/02/06 13:00:00 | B138: 1.538 | C138: 1.525 | D138: 3.061 | E138: 32.606 | F138: 0.49 | G138: 0 | H138: -27.282 | I138: 1.41 | J138: 297.077 | K138: 61.595
A139: 2019/02/06 14:00:00 | B139: 1.754 | C139: 1.761 | D139: 3.515 | E139: 32.477 | F139: 0.527 | G139: 0 | H139: -26.206 | I139: 1.2 | J139: 296.028 | K139: 60.9
A140: 2019/02/06 15:00:00 | B140: 2.238 | C140: 2.167 | D140: 4.405 | E140: 31.732 | F140: 0.635 | G140: 0 | H140: -24.087 | I140: 0.465 | J140: 307.431 | K140: 58.185
A141: 2019/02/06 16:00:00 | B141: 1.957 | C141: 2.346 | D141: 4.302 | E141: 32.256 | F141: 7.061 | G141: 0 | H141: -24.918 | I141: 0.623 | J141: 55.006 | K141: 60.363
A142: 2019/02/06 17:00:00 | B142: 1.28 | C142: 2.911 | D142: 4.191 | E142: 34.324 | F142: 11.586 | G142: 0 | H142: -23.808 | I142: 0.316 | J142: 52.872 | K142: 58.223
A143: 2019/02/06 18:00:00 | B143: 0.741 | C143: 4.194 | D143: 4.932 | E143: 31.739 | F143: 11.733 | G143: 0 | H143: -21.989 | I143: 0.386 | J143: 252.038 | K143: 55.745
A144: 2019/02/06 19:00:00 | B144: 0.264 | C144: 4.652 | D144: 4.915 | E144: 30.387 | F144: 18.19 | G144: 0 | H144: -25.791 | I144: 0.893 | J144: 215.694 | K144: 64.967
A145: 2019/02/06 20:00:00 | B145: 2.645 | C145: 20.744 | D145: 23.387 | E145: 17.939 | F145: 23.269 | G145: 0 | H145: -28.482 | I145: 1.251 | J145: 180.337 | K145: 67.853
A146: 2019/02/06 21:00:00 | B146: 0.271 | C146: 5.077 | D146: 5.347 | E146: 27.647 | F146: 12.293 | G146: 0 | H146: -29.965 | I146: 1.406 | J146: 168.337 | K146: 67.393
A147: 2019/02/06 22:00:00 | B147: 0.377 | C147: 2.806 | D147: 3.181 | E147: 29.564 | F147: 6.417 | G147: 0 | H147: -30.546 | I147: 1.242 | J147: 171.51 | K147: 67.796
A148: 2019/02/06 23:00:00 | B148: Z | C148: Z | D148: Z | E148: Z | F148: 5.174 | G148: 0 | H148: -30.43 | I148: 1.194 | J148: 178.748 | K148: 67.259
A149: 2019/02/07 00:00:00 | B149: 0.235 | C149: 1.467 | D149: 1.701 | E149: 29.726 | F149: 2.733 | G149: 0 | H149: -32.327 | I149: 1.306 | J149: 164.512 | K149: 65.278
A150: 2019/02/07 01:00:00 | B150: 0.398 | C150: 1.295 | D150: 1.691 | E150: 28.486 | F150: 0.773 | G150: 0 | H150: -33.7 | I150: 1.399 | J150: 144.782 | K150: 65.131
A151: 2019/02/07 02:00:00 | B151: 0.404 | C151: 1.123 | D151: 1.525 | E151: 29.768 | F151: 0.71 | G151: 0 | H151: -33.054 | I151: 1.844 | J151: 142.065 | K151: 66.826
A152: 2019/02/07 03:00:00 | B152: 0.306 | C152: 1.058 | D152: 1.361 | E152: 29.817 | F152: 0.599 | G152: 0 | H152: -33.137 | I152: 1.429 | J152: 143.041 | K152: 65.001
A153: 2019/02/07 04:00:00 | B153: 0.185 | C153: 0.849 | D153: 1.032 | E153: 28.876 | F153: 0.87 | G153: 0 | H153: -34.269 | I153: 1.902 | J153: 137.729 | K153: 65.342
A154: 2019/02/07 05:00:00 | B154: 0.213 | C154: 0.941 | D154: 1.151 | E154: 29.857 | F154: 1.417 | G154: 0 | H154: -33.546 | I154: 1.168 | J154: 158.217 | K154: 64.824
A155: 2019/02/07 06:00:00 | B155: 0.142 | C155: 0.624 | D155: 0.764 | E155: 29.477 | F155: 1.615 | G155: 0 | H155: -34.601 | I155: 1.887 | J155: 127.146 | K155: 64.737
A156: 2019/02/07 07:00:00 | B156: 0.359 | C156: 0.833 | D156: 1.192 | E156: 28.327 | F156: 1.9 | G156: 0 | H156: -34.774 | I156: 1.75 | J156: 135.394 | K156: 65.709
A157: 2019/02/07 08:00:00 | B157: 0.085 | C157: 0.786 | D157: 0.869 | E157: 30.487 | F157: 2.28 | G157: 0 | H157: -33.476 | I157: 0.876 | J157: 157.801 | K157: 65.066
A158: 2019/02/07 09:00:00 | B158: 0.479 | C158: 4.166 | D158: 4.644 | E158: 26.603 | F158: 2.345 | G158: 0 | H158: -34.969 | I158: 1.113 | J158: 124.868 | K158: 63.601
A159: 2019/02/07 10:00:00 | B159: 1.442 | C159: 5.038 | D159: 6.478 | E159: 25.008 | F159: 2.577 | G159: 0 | H159: -33.683 | I159: 0.43 | J159: 172.559 | K159: 62.166
A160: 2019/02/07 11:00:00 | B160: 1.847 | C160: 2.206 | D160: 4.052 | E160: 25.767 | F160: 1.236 | G160: 0 | H160: -31.725 | I160: 0.41 | J160: 31.898 | K160: 59.456
A161: 2019/02/07 12:00:00 | B161: 5.075 | C161: 4.076 | D161: 9.149 | E161: 25.519 | F161: 1.874 | G161: 0 | H161: -30.277 | I161: 0.792 | J161: 8.836 | K161: 62.828
A162: 2019/02/07 13:00:00 | B162: 8.016 | C162: 5.418 | D162: 13.433 | E162: 24.916 | F162: 1.385 | G162: 0 | H162: -26.928 | I162: 0.781 | J162: 3.737 | K162: 62.238
A163: 2019/02/07 14:00:00 | B163: 3.795 | C163: 2.942 | D163: 6.735 | E163: 26.625 | F163: 1.204 | G163: 0 | H163: -24.42 | I163: 1.152 | J163: 291.348 | K163: 55.607
A164: 2019/02/07 15:00:00 | B164: 2.083 | C164: 1.959 | D164: 4.041 | E164: 27.85 | F164: 1.91 | G164: 0 | H164: -22.789 | I164: 1.051 | J164: 291.34 | K164: 51.99
A165: 2019/02/07 16:00:00 | B165: 2.785 | C165: 4.042 | D165: 6.826 | E165: 30.569 | F165: 15.699 | G165: 0 | H165: -24.994 | I165: 1.634 | J165: 257.552 | K165: 57.391
A166: 2019/02/07 17:00:00 | B166: 1.761 | C166: 4.324 | D166: 6.084 | E166: 31.27 | F166: 30.286 | G166: 0 | H166: -23.942 | I166: 0.939 | J166: 282.744 | K166: 56.642
A167: 2019/02/07 18:00:00 | B167: 1.051 | C167: 5.124 | D167: 6.174 | E167: 29.426 | F167: 33.345 | G167: 0 | H167: -24.119 | I167: 0.52 | J167: 259.178 | K167: 58.096
A168: 2019/02/07 19:00:00 | B168: 0.207 | C168: 4.714 | D168: 4.919 | E168: 29.942 | F168: 43.115 | G168: 0 | H168: -25.681 | I168: 1.198 | J168: 222.023 | K168: 64.678
A169: 2019/02/07 20:00:00 | B169: 0.145 | C169: 11.247 | D169: 11.393 | E169: 20.638 | F169: 37.34 | G169: 0 | H169: -28.065 | I169: 1.178 | J169: 188.088 | K169: 67.867
A170: 2019/02/07 21:00:00 | B170: 0.13 | C170: 10.252 | D170: 10.382 | E170: 20.931 | F170: 26.225 | G170: 0 | H170: -28.848 | I170: 1.298 | J170: 179.161 | K170: 68.574
A171: 2019/02/07 22:00:00 | B171: Z | C171: Z | D171: Z | E171: Z | F171: 6.654 | G171: 0 | H171: -28.138 | I171: 0.944 | J171: 193.993 | K171: 67.729
A172: 2019/02/07 23:00:00 | B172: -0.016 | C172: 1.644 | D172: 1.629 | E172: 32.157 | F172: 5.754 | G172: 0 | H172: -29.111 | I172: 0.316 | J172: 140.795 | K172: 66.241
A173: 2019/02/08 00:00:00 | B173: 0.09 | C173: 1.203 | D173: 1.294 | E173: 34.347 | F173: 2.786 | G173: 0 | H173: -29.667 | I173: 0.473 | J173: 189.139 | K173: 65.936
A174: 2019/02/08 01:00:00 | B174: -0.024 | C174: 0.778 | D174: 0.754 | E174: 34.079 | F174: 1.546 | G174: 0 | H174: -30.301 | I174: 0.884 | J174: 174.769 | K174: 66.132
A175: 2019/02/08 02:00:00 | B175: -0.034 | C175: 0.811 | D175: 0.776 | E175: 32.45 | F175: 1.555 | G175: 0 | H175: -31.351 | I175: 0.925 | J175: 164.502 | K175: 65.767
A176: 2019/02/08 03:00:00 | B176: 0.058 | C176: 0.738 | D176: 0.795 | E176: 33.593 | F176: 1.135 | G176: 0 | H176: -30.769 | I176: 0.459 | J176: 159.708 | K176: 64.424
A177: 2019/02/08 04:00:00 | B177: 0.116 | C177: 0.865 | D177: 0.98 | E177: 32.863 | F177: 1.007 | G177: 0 | H177: -31.731 | I177: 1.087 | J177: 154.712 | K177: 65.225
A178: 2019/02/08 05:00:00 | B178: 0.079 | C178: 0.978 | D178: 1.057 | E178: 32.019 | F178: 0.886 | G178: 0 | H178: -31.814 | I178: 1.051 | J178: 147.32 | K178: 66.549
A179: 2019/02/08 06:00:00 | B179: 0.158 | C179: 1.182 | D179: 1.341 | E179: 33.25 | F179: 0.752 | G179: 0 | H179: -30.289 | I179: 1.058 | J179: 146.193 | K179: 66.012
A180: 2019/02/08 07:00:00 | B180: 0.268 | C180: 1.313 | D180: 1.58 | E180: 31.324 | F180: 0.668 | G180: 0 | H180: -31.163 | I180: 0.729 | J180: 162.361 | K180: 64.902
A181: 2019/02/08 08:00:00 | B181: 0.071 | C181: 0.975 | D181: 1.046 | E181: 31.711 | F181: 0.553 | G181: 0 | H181: -31.312 | I181: 0.044 | J181: 219.861 | K181: 61.973
A182: 2019/02/08 09:00:00 | B182: 0.079 | C182: 1.094 | D182: 1.173 | E182: 32.047 | F182: 0.692 | G182: 0 | H182: -30.87 | I182: 0.679 | J182: 131.06 | K182: 63.799
A183: 2019/02/08 10:00:00 | B183: 0.137 | C183: 0.812 | D183: 0.95 | E183: 33.339 | F183: 0.629 | G183: 0 | H183: -29.488 | I183: 1.385 | J183: 135.735 | K183: 67.23
A184: 2019/02/08 11:00:00 | B184: 0.208 | C184: 1.113 | D184: 1.322 | E184: 33.304 | F184: 0.761 | G184: 0 | H184: -27.01 | I184: 1.406 | J184: 138.159 | K184: 67.079
A185: 2019/02/08 12:00:00 | B185: 0.779 | C185: 1.293 | D185: 2.072 | E185: 32.987 | F185: 0.979 | G185: 0 | H185: -25.452 | I185: 1.141 | J185: 90.685 | K185: 63.557
A186: 2019/02/08 13:00:00 | B186: 1.102 | C186: 1.666 | D186: 2.768 | E186: 32.925 | F186: 0.921 | G186: 0 | H186: -24.724 | I186: 2.06 | J186: 95.674 | K186: 63.51
A187: 2019/02/08 14:00:00 | B187: 0.63 | C187: 1.211 | D187: 1.841 | E187: 34.138 | F187: 0.643 | G187: 0 | H187: -22.285 | I187: 2.29 | J187: 104.175 | K187: 60.252
A188: 2019/02/08 15:00:00 | B188: 1.077 | C188: 1.148 | D188: 2.226 | E188: 36.138 | F188: 0.4 | G188: 0 | H188: -20.757 | I188: 1.968 | J188: 103.932 | K188: 56.076
A189: 2019/02/08 16:00:00 | B189: 0.548 | C189: 1.221 | D189: 1.769 | E189: 34.364 | F189: 3.131 | G189: 0 | H189: -21.185 | I189: 1.677 | J189: 13.424 | K189: 61.989
A190: 2019/02/08 17:00:00 | B190: 0.205 | C190: 0.868 | D190: 1.074 | E190: 35.959 | F190: 2.48 | G190: 0 | H190: -20.614 | I190: 1.568 | J190: 52.319 | K190: 63.682
A191: 2019/02/08 18:00:00 | B191: 0.318 | C191: 1.879 | D191: 2.196 | E191: 35.431 | F191: 2.506 | G191: 0 | H191: -21.304 | I191: 1.485 | J191: 54.005 | K191: 65.783
A192: 2019/02/08 19:00:00 | B192: 0.02 | C192: 2.714 | D192: 2.735 | E192: 34.282 | F192: 3.11 | G192: 0 | H192: -21.759 | I192: 0.83 | J192: 75.808 | K192: 68.834
A193: 2019/02/08 20:00:00 | B193: 0.061 | C193: 1.231 | D193: 1.292 | E193: 35.919 | F193: 2.975 | G193: 0 | H193: -22.184 | I193: 0.471 | J193: 130.447 | K193: 68.815
A194: 2019/02/08 21:00:00 | B194: Z | C194: Z | D194: Z | E194: Z | F194: 2.304 | G194: 0 | H194: -22.167 | I194: 0.277 | J194: 98.374 | K194: 66.818
A195: 2019/02/08 22:00:00 | B195: 0.039 | C195: 2.568 | D195: 2.608 | E195: 34.814 | F195: 2.452 | G195: 0 | H195: -22.44 | I195: 0.287 | J195: 106.722 | K195: 67.142
A196: 2019/02/08 23:00:00 | B196: 0.064 | C196: 2.993 | D196: 3.057 | E196: 33.763 | F196: 2.351 | G196: 0 | H196: -23.419 | I196: 0.693 | J196: 42.779 | K196: 70.021
A197: 2019/02/09 00:00:00 | B197: 0.028 | C197: 1.806 | D197: 1.834 | E197: 34.333 | F197: 1.671 | G197: 0 | H197: -24.027 | I197: 0.962 | J197: 43.298 | K197: 70.492
A198: 2019/02/09 01:00:00 | B198: -0.037 | C198: 1.468 | D198: 1.431 | E198: 34.524 | F198: 1.647 | G198: 0 | H198: -23.985 | I198: 0.089 | J198: 33.895 | K198: 67.954
A199: 2019/02/09 02:00:00 | B199: -0.024 | C199: 0.957 | D199: 0.933 | E199: 34.962 | F199: 1.423 | G199: 0 | H199: -24.728 | I199: 0.595 | J199: 48.829 | K199: 68.997
A200: 2019/02/09 03:00:00 | B200: 0.038 | C200: 0.825 | D200: 0.862 | E200: 34.739 | F200: 1.358 | G200: 0 | H200: -25.244 | I200: 0.106 | J200: 288.019 | K200: 66.932
A201: 2019/02/09 04:00:00 | B201: 0.088 | C201: 0.638 | D201: 0.726 | E201: 34.895 | F201: 1.515 | G201: 0 | H201: -26.34 | I201: 0.715 | J201: 231.881 | K201: 64.989
... 483 more rows
